{"text_format":"1","workbook":"xlsx","n_sheets":15,"sheets":["How to_monthly data collection ","January","February","March","April","May","June","July","August","Sept","Oct","Nov","Dec","Monthly_Data_For_Graphs","Monthly_Graphs"],"not_rendered":{"charts":4,"images":7,"macros":1,"external_links":0,"defined_names":50,"comments":0,"pivot_tables":4},"unopened":[],"bounds":{"document_bytes":16777216,"sheet_cells":100000,"rows_first":2000,"rows_last":500,"rows_between":2000,"halvings":0,"cell_chars":16384,"cell_head_chars":4096},"cells_cut":0,"cells_raw":0,"read":"whole","date_system":"1900"}

{"sheet":"How to_monthly data collection ","index":0,"n_rows":32,"n_cols":3,"rows_kept":32,"cut":false,"hidden":false,"merged":[]}
[]
["Monthly Data collection "]
[]
[]
[]
[]
["The information/data for this process will be available in the patient's health care record"]
[]
["Using this spreadsheet "]
["Step 1: Enter the data for each patient on the form in each month"]
[]
["N.B: You must enter a commencement and completion date "]
[]
["Step 2: Enter these totals on the \"Monthly\" tabs"]
["The table above the data collection form will automaticall fill with the number of patients and % of activities completed "]
[]
[]
[null,null,"→"]
[]
[]
["To put this data into the  \"Monthly_Data_For_Graphs\" section you can either manually enter the data OR highlight the data → right click → copy → go to chart → right click and paste 'values' "]
[]
[]
["Step 3: Enter each months totals from the yellow cells on the \"Monthly_Data_For_Graphs\" page on a new row"]
[]
[]
[]
[]
[]
[]
[]
["Step 4: Go to the \"Monthly_Graphs\" page and print a copy for your reporting"]

{"sheet":"January","index":1,"n_rows":100,"n_cols":35,"rows_kept":100,"cut":false,"hidden":false,"merged":[[9,7,9,9],[10,3,10,5],[5,1,5,6],[6,1,6,6],[9,0,9,2],[9,3,9,6]]}
[]
[null,"Patients commencing AMBER","All day one interventions completed","Patient monitored daily","Reason for cessation documented"]
[null,{"$f":"SUM(O13:O105)","v":0},{"$f":"COUNTIF(P13:P105,\">=4\")/B3","v":{"$error":"#DIV/0!"}},{"$f":"COUNTIF(Q13:Q105,\">=3\")/B3","v":{"$error":"#DIV/0!"}},{"$f":"(SUM(R13:R100)-SUM(S13:T100))/SUM(R13:R100)","v":{"$error":"#DIV/0!"}},"   Step 2: Enter these totals on the \"Monthly_Data_For_Graphs\" page"]
[]
["Step 1: Enter the data for each patient on the form below"]
["Facility:   "]
["Ward or Clinical Unit:   "]
["Month:   ","January"]
[]
["Demographic information ",null,null,"Day 1 Interventions ",null,null,null,"Daily ACT monitoring ",null,null,"Cessation Details","Further comments, patient story or outcomes "]
[null,null,null,"within 4 hours of bundle initiation",null,null,"within 12 hours "]
["Primary diagnosis of patient","Date AMBER care bundle commenced ","Date AMBER care bundle ceased","medical plan document in progress notes","escalation decision documented - this includes both rapid response and clinical review "," resuscitation plan completed "," patient/carer discussion documented in medical record"," AMBER status confirmed or documented"," medical change documented"," talked to patient or carer re management plan","Reason for AMBER cessation",null,null,null,null,null,null,{"$f":"SUM(R13:R100)","v":0},{"$f":"SUM(S13:S100)","v":0},{"$f":"SUM(T13:T100)","v":0}]
[null,null,null,null,null,null,null,null,null,null,null,null,null,null,{"$f":"COUNTIF(B13,\">=01/01/2014\")","v":0},{"$f":"COUNTIF(D13:G13,\"*Yes*\")","v":0},{"$f":"COUNTIF(H13:J13,\"*Yes*\")","v":0},{"$f":"COUNTIF(C13,\">=01/01/2014\")","v":0},{"$f":"IF(C13>=1/1/2014,COUNTIF(K13,\"*Not documented*\"),0)","v":0},{"$f":"IF(C13>=1/1/2014,COUNTBLANK(K13))","v":false},null,null,null,null,null,null,null,null,null,null,null,"January","Not documented","Hospital ","Yes "]
[null,null,null,null,null,null,null,null,null,null,null,null,null,null,{"$f":"COUNTIF(B14,\">=01/01/2014\")","v":0},{"$f":"COUNTIF(D14:G14,\"*Yes*\")","v":0},{"$f":"COUNTIF(H14:J14,\"*Yes*\")","v":0},{"$f":"COUNTIF(C14,\">=01/01/2014\")","v":0},{"$f":"IF(C14>=1/1/2014,COUNTIF(K14,\"*Not documented*\"),0)","v":0},{"$f":"IF(C14>=1/1/2014,COUNTBLANK(K14))","v":false},null,null,null,null,null,null,null,null,null,null,null,"February","Clinical Improvement ","Patient's Home","No "]
[null,null,null,null,null,null,null,null,null,null,null,null,null,null,0,0,0,0,0,false,null,null,null,null,null,null,null,null,null,null,null,"March","Death ","Relative's home"]
[null,null,null,null,null,null,null,null,null,null,null,null,null,null,0,0,0,0,0,false,null,null,null,null,null,null,null,null,null,null,null,"April","Deterioration; end of life","Palliative Care Unit/Hospice"]
[null,null,null,null,null,null,null,null,null,null,null,null,null,null,0,0,0,0,0,false,null,null,null,null,null,null,null,null,null,null,null,"May","Discharge","Residential Aged Care facility"]
[null,null,null,null,null,null,null,null,null,null,null,null,null,null,0,0,0,0,0,false,null,null,null,null,null,null,null,null,null,null,null,"June","Moved to non - ACB ward","Other "]
[null,null,null,null,null,null,null,null,null,null,null,null,null,null,0,0,0,0,0,false,null,null,null,null,null,null,null,null,null,null,null,"July","Other"]
[null,null,null,null,null,null,null,null,null,null,null,null,null,null,0,0,0,0,0,false,null,null,null,null,null,null,null,null,null,null,null,"August"]
[null,null,null,null,null,null,null,null,null,null,null,null,null,null,0,0,0,0,0,false,null,null,null,null,null,null,null,null,null,null,null,"September"]
[null,null,null,null,null,null,null,null,null,null,null,null,null,null,0,0,0,0,0,false,null,null,null,null,null,null,null,null,null,null,null,"October"]
[null,null,null,null,null,null,null,null,null,null,null,null,null,null,0,0,0,0,0,false,null,null,null,null,null,null,null,null,null,null,null,"November"]
[null,null,null,null,null,null,null,null,null,null,null,null,null,null,0,0,0,0,0,false,null,null,null,null,null,null,null,null,null,null,null,"December"]
[null,null,null,null,null,null,null,null,null,null,null,null,null,null,0,0,0,0,0,false]
[null,null,null,null,null,null,null,null,null,null,null,null,null,null,0,0,0,0,0,false]
[null,null,null,null,null,null,null,null,null,null,null,null,null,null,0,0,0,0,0,false]
[null,null,null,null,null,null,null,null,null,null,null,null,null,null,0,0,0,0,0,false]
[null,null,null,null,null,null,null,null,null,null,null,null,null,null,0,0,0,0,0,false]
[null,null,null,null,null,null,null,null,null,null,null,null,null,null,0,0,0,0,0,false]
[null,null,null,null,null,null,null,null,null,null,null,null,null,null,0,0,0,0,0,false]
[null,null,null,null,null,null,null,null,null,null,null,null,null,null,0,0,0,0,0,false]
[null,null,null,null,null,null,null,null,null,null,null,null,null,null,0,0,0,0,0,false]
[null,null,null,null,null,null,null,null,null,null,null,null,null,null,0,0,0,0,0,false]
[null,null,null,null,null,null,null,null,null,null,null,null,null,null,0,0,0,0,0,false]
[null,null,null,null,null,null,null,null,null,null,null,null,null,null,0,0,0,0,0,false]
[null,null,null,null,null,null,null,null,null,null,null,null,null,null,0,0,0,0,0,false]
[null,null,null,null,null,null,null,null,null,null,null,null,null,null,0,0,0,0,0,false]
[null,null,null,null,null,null,null,null,null,null,null,null,null,null,0,0,0,0,0,false]
[null,null,null,null,null,null,null,null,null,null,null,null,null,null,0,0,0,0,0,false]
[null,null,null,null,null,null,null,null,null,null,null,null,null,null,0,0,0,0,0,false]
[null,null,null,null,null,null,null,null,null,null,null,null,null,null,0,0,0,0,0,false]
[null,null,null,null,null,null,null,null,null,null,null,null,null,null,0,0,0,0,0,false]
[null,null,null,null,null,null,null,null,null,null,null,null,null,null,0,0,0,0,0,false]
[null,null,null,null,null,null,null,null,null,null,null,null,null,null,0,0,0,0,0,false]
[null,null,null,null,null,null,null,null,null,null,null,null,null,null,0,0,0,0,0,false]
[null,null,null,null,null,null,null,null,null,null,null,null,null,null,0,0,0,0,0,false]
[null,null,null,null,null,null,null,null,null,null,null,null,null,null,0,0,0,0,0,false]
[null,null,null,null,null,null,null,null,null,null,null,null,null,null,0,0,0,0,0,false]
[null,null,null,null,null,null,null,null,null,null,null,null,null,null,0,0,0,0,0,false]
[null,null,null,null,null,null,null,null,null,null,null,null,null,null,0,0,0,0,0,false]
[null,null,null,null,null,null,null,null,null,null,null,null,null,null,0,0,0,0,0,false]
[null,null,null,null,null,null,null,null,null,null,null,null,null,null,0,0,0,0,0,false]
[null,null,null,null,null,null,null,null,null,null,null,null,null,null,0,0,0,0,0,false]
[null,null,null,null,null,null,null,null,null,null,null,null,null,null,0,0,0,0,0,false]
[null,null,null,null,null,null,null,null,null,null,null,null,null,null,0,0,0,0,0,false]
[null,null,null,null,null,null,null,null,null,null,null,null,null,null,0,0,0,0,0,false]
[null,null,null,null,null,null,null,null,null,null,null,null,null,null,0,0,0,0,0,false]
[null,null,null,null,null,null,null,null,null,null,null,null,null,null,0,0,0,0,0,false]
[null,null,null,null,null,null,null,null,null,null,null,null,null,null,0,0,0,0,0,false]
[null,null,null,null,null,null,null,null,null,null,null,null,null,null,0,0,0,0,0,false]
[null,null,null,null,null,null,null,null,null,null,null,null,null,null,0,0,0,0,0,false]
[null,null,null,null,null,null,null,null,null,null,null,null,null,null,0,0,0,0,0,false]
[null,null,null,null,null,null,null,null,null,null,null,null,null,null,0,0,0,0,0,false]
[null,null,null,null,null,null,null,null,null,null,null,null,null,null,0,0,0,0,0,false]
[null,null,null,null,null,null,null,null,null,null,null,null,null,null,0,0,0,0,0,false]
[null,null,null,null,null,null,null,null,null,null,null,null,null,null,0,0,0,0,0,false]
[null,null,null,null,null,null,null,null,null,null,null,null,null,null,0,0,0,0,0,false]
[null,null,null,null,null,null,null,null,null,null,null,null,null,null,0,0,0,0,0,false]
[null,null,null,null,null,null,null,null,null,null,null,null,null,null,0,0,0,0,0,false]
[null,null,null,null,null,null,null,null,null,null,null,null,null,null,0,0,0,0,0,false]
[null,null,null,null,null,null,null,null,null,null,null,null,null,null,0,0,0,0,0,false]
[null,null,null,null,null,null,null,null,null,null,null,null,null,null,0,0,0,0,0,false]
[null,null,null,null,null,null,null,null,null,null,null,null,null,null,0,0,0,0,0,false]
[null,null,null,null,null,null,null,null,null,null,null,null,null,null,0,0,0,0,0,false]
[null,null,null,null,null,null,null,null,null,null,null,null,null,null,0,0,0,0,0,false]
[null,null,null,null,null,null,null,null,null,null,null,null,null,null,0,0,0,0,0,false]
[null,null,null,null,null,null,null,null,null,null,null,null,null,null,{"$f":"COUNTIF(B78,\">=01/01/2014\")","v":0},{"$f":"COUNTIF(D78:G78,\"*Yes*\")","v":0},{"$f":"COUNTIF(H78:J78,\"*Yes*\")","v":0},{"$f":"COUNTIF(C78,\">=01/01/2014\")","v":0},{"$f":"IF(C78>=1/1/2014,COUNTIF(K78,\"*Not documented*\"),0)","v":0},{"$f":"IF(C78>=1/1/2014,COUNTBLANK(K78))","v":false}]
[null,null,null,null,null,null,null,null,null,null,null,null,null,null,0,0,0,0,0,false]
[null,null,null,null,null,null,null,null,null,null,null,null,null,null,0,0,0,0,0,false]
[null,null,null,null,null,null,null,null,null,null,null,null,null,null,0,0,0,0,0,false]
[null,null,null,null,null,null,null,null,null,null,null,null,null,null,0,0,0,0,0,false]
[null,null,null,null,null,null,null,null,null,null,null,null,null,null,0,0,0,0,0,false]
[null,null,null,null,null,null,null,null,null,null,null,null,null,null,0,0,0,0,0,false]
[null,null,null,null,null,null,null,null,null,null,null,null,null,null,0,0,0,0,0,false]
[null,null,null,null,null,null,null,null,null,null,null,null,null,null,0,0,0,0,0,false]
[null,null,null,null,null,null,null,null,null,null,null,null,null,null,0,0,0,0,0,false]
[null,null,null,null,null,null,null,null,null,null,null,null,null,null,0,0,0,0,0,false]
[null,null,null,null,null,null,null,null,null,null,null,null,null,null,0,0,0,0,0,false]
[null,null,null,null,null,null,null,null,null,null,null,null,null,null,0,0,0,0,0,false]
[null,null,null,null,null,null,null,null,null,null,null,null,null,null,0,0,0,0,0,false]
[null,null,null,null,null,null,null,null,null,null,null,null,null,null,0,0,0,0,0,false]
[null,null,null,null,null,null,null,null,null,null,null,null,null,null,0,0,0,0,0,false]
[null,null,null,null,null,null,null,null,null,null,null,null,null,null,0,0,0,0,0,false]
[null,null,null,null,null,null,null,null,null,null,null,null,null,null,0,0,0,0,0,false]
[null,null,null,null,null,null,null,null,null,null,null,null,null,null,0,0,0,0,0,false]
[null,null,null,null,null,null,null,null,null,null,null,null,null,null,0,0,0,0,0,false]
[null,null,null,null,null,null,null,null,null,null,null,null,null,null,0,0,0,0,0,false]
[null,null,null,null,null,null,null,null,null,null,null,null,null,null,0,0,0,0,0,false]
[null,null,null,null,null,null,null,null,null,null,null,null,null,null,0,0,0,0,0,false]

{"sheet":"February","index":2,"n_rows":100,"n_cols":35,"rows_kept":100,"cut":false,"hidden":false,"merged":[[9,7,9,9],[10,3,10,5],[5,1,5,6],[6,1,6,6],[9,0,9,2],[9,3,9,6]]}
[]
[null,"Patients commencing AMBER","All day one interventions completed","Patient monitored daily","Reason for cessation documented"]
[null,{"$f":"SUM(O13:O105)","v":0},{"$f":"COUNTIF(P13:P105,\">=4\")/B3","v":{"$error":"#DIV/0!"}},{"$f":"COUNTIF(Q13:Q105,\">=3\")/B3","v":{"$error":"#DIV/0!"}},{"$f":"(SUM(R13:R100)-SUM(S13:T100))/SUM(R13:R100)","v":{"$error":"#DIV/0!"}},"   Step 2: Enter these totals on the \"Monthly_Data_For_Graphs\" page"]
[]
["Step 1: Enter the data for each patient on the form below"]
["Facility:   "]
["Ward or Clinical Unit:   "]
["Month:   ","March"]
[]
["Demographic information ",null,null,"Day 1 Interventions ",null,null,null,"Daily ACT monitoring ",null,null,"Cessation Details","Further comments, patient story or outcomes "]
[null,null,null,"within 4 hours of bundle initiation",null,null,"within 12 hours "]
["Primary diagnosis of patient","Date AMBER care bundle commenced ","Date AMBER care bundle ceased","medical plan document in progress notes","escalation decision documented - this includes both rapid response and clinical review "," resuscitation plan completed "," patient/carer discussion documented in medical record"," AMBER status confirmed or documented"," medical change documented"," talked to patient or carer re management plan","Reason for AMBER cessation",null,null,null,null,null,null,{"$f":"SUM(R13:R100)","v":0},{"$f":"SUM(S13:S100)","v":0},{"$f":"SUM(T13:T100)","v":0}]
[null,null,null,null,null,null,null,null,null,null,null,null,null,null,{"$f":"COUNTIF(B13,\">=01/01/2014\")","v":0},{"$f":"COUNTIF(D13:G13,\"*Yes*\")","v":0},{"$f":"COUNTIF(H13:J13,\"*Yes*\")","v":0},{"$f":"COUNTIF(C13,\">=01/01/2014\")","v":0},{"$f":"IF(C13>=1/1/2014,COUNTIF(K13,\"*Not documented*\"),0)","v":0},{"$f":"IF(C13>=1/1/2014,COUNTBLANK(K13))","v":false},null,null,null,null,null,null,null,null,null,null,null,"January","Not documented","Hospital ","Yes "]
[null,null,null,null,null,null,null,null,null,null,null,null,null,null,{"$f":"COUNTIF(B14,\">=01/01/2014\")","v":0},{"$f":"COUNTIF(D14:G14,\"*Yes*\")","v":0},{"$f":"COUNTIF(H14:J14,\"*Yes*\")","v":0},{"$f":"COUNTIF(C14,\">=01/01/2014\")","v":0},{"$f":"IF(C14>=1/1/2014,COUNTIF(K14,\"*Not documented*\"),0)","v":0},{"$f":"IF(C14>=1/1/2014,COUNTBLANK(K14))","v":false},null,null,null,null,null,null,null,null,null,null,null,"February","Clinical Improvement ","Patient's Home","No "]
[null,null,null,null,null,null,null,null,null,null,null,null,null,null,0,0,0,0,0,false,null,null,null,null,null,null,null,null,null,null,null,"March","Death ","Relative's home"]
[null,null,null,null,null,null,null,null,null,null,null,null,null,null,0,0,0,0,0,false,null,null,null,null,null,null,null,null,null,null,null,"April","Deterioration; end of life","Palliative Care Unit/Hospice"]
[null,null,null,null,null,null,null,null,null,null,null,null,null,null,0,0,0,0,0,false,null,null,null,null,null,null,null,null,null,null,null,"May","Discharge","Residential Aged Care facility"]
[null,null,null,null,null,null,null,null,null,null,null,null,null,null,0,0,0,0,0,false,null,null,null,null,null,null,null,null,null,null,null,"June","Moved to non - ACB ward","Other "]
[null,null,null,null,null,null,null,null,null,null,null,null,null,null,0,0,0,0,0,false,null,null,null,null,null,null,null,null,null,null,null,"July","Other"]
[null,null,null,null,null,null,null,null,null,null,null,null,null,null,0,0,0,0,0,false,null,null,null,null,null,null,null,null,null,null,null,"August"]
[null,null,null,null,null,null,null,null,null,null,null,null,null,null,0,0,0,0,0,false,null,null,null,null,null,null,null,null,null,null,null,"September"]
[null,null,null,null,null,null,null,null,null,null,null,null,null,null,0,0,0,0,0,false,null,null,null,null,null,null,null,null,null,null,null,"October"]
[null,null,null,null,null,null,null,null,null,null,null,null,null,null,0,0,0,0,0,false,null,null,null,null,null,null,null,null,null,null,null,"November"]
[null,null,null,null,null,null,null,null,null,null,null,null,null,null,0,0,0,0,0,false,null,null,null,null,null,null,null,null,null,null,null,"December"]
[null,null,null,null,null,null,null,null,null,null,null,null,null,null,0,0,0,0,0,false]
[null,null,null,null,null,null,null,null,null,null,null,null,null,null,0,0,0,0,0,false]
[null,null,null,null,null,null,null,null,null,null,null,null,null,null,0,0,0,0,0,false]
[null,null,null,null,null,null,null,null,null,null,null,null,null,null,0,0,0,0,0,false]
[null,null,null,null,null,null,null,null,null,null,null,null,null,null,0,0,0,0,0,false]
[null,null,null,null,null,null,null,null,null,null,null,null,null,null,0,0,0,0,0,false]
[null,null,null,null,null,null,null,null,null,null,null,null,null,null,0,0,0,0,0,false]
[null,null,null,null,null,null,null,null,null,null,null,null,null,null,0,0,0,0,0,false]
[null,null,null,null,null,null,null,null,null,null,null,null,null,null,0,0,0,0,0,false]
[null,null,null,null,null,null,null,null,null,null,null,null,null,null,0,0,0,0,0,false]
[null,null,null,null,null,null,null,null,null,null,null,null,null,null,0,0,0,0,0,false]
[null,null,null,null,null,null,null,null,null,null,null,null,null,null,0,0,0,0,0,false]
[null,null,null,null,null,null,null,null,null,null,null,null,null,null,0,0,0,0,0,false]
[null,null,null,null,null,null,null,null,null,null,null,null,null,null,0,0,0,0,0,false]
[null,null,null,null,null,null,null,null,null,null,null,null,null,null,0,0,0,0,0,false]
[null,null,null,null,null,null,null,null,null,null,null,null,null,null,0,0,0,0,0,false]
[null,null,null,null,null,null,null,null,null,null,null,null,null,null,0,0,0,0,0,false]
[null,null,null,null,null,null,null,null,null,null,null,null,null,null,0,0,0,0,0,false]
[null,null,null,null,null,null,null,null,null,null,null,null,null,null,0,0,0,0,0,false]
[null,null,null,null,null,null,null,null,null,null,null,null,null,null,0,0,0,0,0,false]
[null,null,null,null,null,null,null,null,null,null,null,null,null,null,0,0,0,0,0,false]
[null,null,null,null,null,null,null,null,null,null,null,null,null,null,0,0,0,0,0,false]
[null,null,null,null,null,null,null,null,null,null,null,null,null,null,0,0,0,0,0,false]
[null,null,null,null,null,null,null,null,null,null,null,null,null,null,0,0,0,0,0,false]
[null,null,null,null,null,null,null,null,null,null,null,null,null,null,0,0,0,0,0,false]
[null,null,null,null,null,null,null,null,null,null,null,null,null,null,0,0,0,0,0,false]
[null,null,null,null,null,null,null,null,null,null,null,null,null,null,0,0,0,0,0,false]
[null,null,null,null,null,null,null,null,null,null,null,null,null,null,0,0,0,0,0,false]
[null,null,null,null,null,null,null,null,null,null,null,null,null,null,0,0,0,0,0,false]
[null,null,null,null,null,null,null,null,null,null,null,null,null,null,0,0,0,0,0,false]
[null,null,null,null,null,null,null,null,null,null,null,null,null,null,0,0,0,0,0,false]
[null,null,null,null,null,null,null,null,null,null,null,null,null,null,0,0,0,0,0,false]
[null,null,null,null,null,null,null,null,null,null,null,null,null,null,0,0,0,0,0,false]
[null,null,null,null,null,null,null,null,null,null,null,null,null,null,0,0,0,0,0,false]
[null,null,null,null,null,null,null,null,null,null,null,null,null,null,0,0,0,0,0,false]
[null,null,null,null,null,null,null,null,null,null,null,null,null,null,0,0,0,0,0,false]
[null,null,null,null,null,null,null,null,null,null,null,null,null,null,0,0,0,0,0,false]
[null,null,null,null,null,null,null,null,null,null,null,null,null,null,0,0,0,0,0,false]
[null,null,null,null,null,null,null,null,null,null,null,null,null,null,0,0,0,0,0,false]
[null,null,null,null,null,null,null,null,null,null,null,null,null,null,0,0,0,0,0,false]
[null,null,null,null,null,null,null,null,null,null,null,null,null,null,0,0,0,0,0,false]
[null,null,null,null,null,null,null,null,null,null,null,null,null,null,0,0,0,0,0,false]
[null,null,null,null,null,null,null,null,null,null,null,null,null,null,0,0,0,0,0,false]
[null,null,null,null,null,null,null,null,null,null,null,null,null,null,0,0,0,0,0,false]
[null,null,null,null,null,null,null,null,null,null,null,null,null,null,0,0,0,0,0,false]
[null,null,null,null,null,null,null,null,null,null,null,null,null,null,0,0,0,0,0,false]
[null,null,null,null,null,null,null,null,null,null,null,null,null,null,0,0,0,0,0,false]
[null,null,null,null,null,null,null,null,null,null,null,null,null,null,0,0,0,0,0,false]
[null,null,null,null,null,null,null,null,null,null,null,null,null,null,0,0,0,0,0,false]
[null,null,null,null,null,null,null,null,null,null,null,null,null,null,0,0,0,0,0,false]
[null,null,null,null,null,null,null,null,null,null,null,null,null,null,0,0,0,0,0,false]
[null,null,null,null,null,null,null,null,null,null,null,null,null,null,0,0,0,0,0,false]
[null,null,null,null,null,null,null,null,null,null,null,null,null,null,0,0,0,0,0,false]
[null,null,null,null,null,null,null,null,null,null,null,null,null,null,{"$f":"COUNTIF(B78,\">=01/01/2014\")","v":0},{"$f":"COUNTIF(D78:G78,\"*Yes*\")","v":0},{"$f":"COUNTIF(H78:J78,\"*Yes*\")","v":0},{"$f":"COUNTIF(C78,\">=01/01/2014\")","v":0},{"$f":"IF(C78>=1/1/2014,COUNTIF(K78,\"*Not documented*\"),0)","v":0},{"$f":"IF(C78>=1/1/2014,COUNTBLANK(K78))","v":false}]
[null,null,null,null,null,null,null,null,null,null,null,null,null,null,0,0,0,0,0,false]
[null,null,null,null,null,null,null,null,null,null,null,null,null,null,0,0,0,0,0,false]
[null,null,null,null,null,null,null,null,null,null,null,null,null,null,0,0,0,0,0,false]
[null,null,null,null,null,null,null,null,null,null,null,null,null,null,0,0,0,0,0,false]
[null,null,null,null,null,null,null,null,null,null,null,null,null,null,0,0,0,0,0,false]
[null,null,null,null,null,null,null,null,null,null,null,null,null,null,0,0,0,0,0,false]
[null,null,null,null,null,null,null,null,null,null,null,null,null,null,0,0,0,0,0,false]
[null,null,null,null,null,null,null,null,null,null,null,null,null,null,0,0,0,0,0,false]
[null,null,null,null,null,null,null,null,null,null,null,null,null,null,0,0,0,0,0,false]
[null,null,null,null,null,null,null,null,null,null,null,null,null,null,0,0,0,0,0,false]
[null,null,null,null,null,null,null,null,null,null,null,null,null,null,0,0,0,0,0,false]
[null,null,null,null,null,null,null,null,null,null,null,null,null,null,0,0,0,0,0,false]
[null,null,null,null,null,null,null,null,null,null,null,null,null,null,0,0,0,0,0,false]
[null,null,null,null,null,null,null,null,null,null,null,null,null,null,0,0,0,0,0,false]
[null,null,null,null,null,null,null,null,null,null,null,null,null,null,0,0,0,0,0,false]
[null,null,null,null,null,null,null,null,null,null,null,null,null,null,0,0,0,0,0,false]
[null,null,null,null,null,null,null,null,null,null,null,null,null,null,0,0,0,0,0,false]
[null,null,null,null,null,null,null,null,null,null,null,null,null,null,0,0,0,0,0,false]
[null,null,null,null,null,null,null,null,null,null,null,null,null,null,0,0,0,0,0,false]
[null,null,null,null,null,null,null,null,null,null,null,null,null,null,0,0,0,0,0,false]
[null,null,null,null,null,null,null,null,null,null,null,null,null,null,0,0,0,0,0,false]
[null,null,null,null,null,null,null,null,null,null,null,null,null,null,0,0,0,0,0,false]

{"sheet":"March","index":3,"n_rows":100,"n_cols":35,"rows_kept":100,"cut":false,"hidden":false,"merged":[[9,7,9,9],[10,3,10,5],[5,1,5,6],[6,1,6,6],[9,0,9,2],[9,3,9,6]]}
[]
[null,"Patients commencing AMBER","All day one interventions completed","Patient monitored daily","Reason for cessation documented"]
[null,{"$f":"SUM(O13:O105)","v":0},{"$f":"COUNTIF(P13:P105,\">=4\")/B3","v":{"$error":"#DIV/0!"}},{"$f":"COUNTIF(Q13:Q105,\">=3\")/B3","v":{"$error":"#DIV/0!"}},{"$f":"(SUM(R13:R100)-SUM(S13:T100))/SUM(R13:R100)","v":{"$error":"#DIV/0!"}},"   Step 2: Enter these totals on the \"Monthly_Data_For_Graphs\" page"]
[]
["Step 1: Enter the data for each patient on the form below"]
["Facility:   "]
["Ward or Clinical Unit:   "]
["Month:   ","March"]
[]
["Demographic information ",null,null,"Day 1 Interventions ",null,null,null,"Daily ACT monitoring ",null,null,"Cessation Details","Further comments, patient story or outcomes "]
[null,null,null,"within 4 hours of bundle initiation",null,null,"within 12 hours "]
["Primary diagnosis of patient","Date AMBER care bundle commenced ","Date AMBER care bundle ceased","medical plan document in progress notes","escalation decision documented - this includes both rapid response and clinical review "," resuscitation plan completed "," patient/carer discussion documented in medical record"," AMBER status confirmed or documented"," medical change documented"," talked to patient or carer re management plan","Reason for AMBER cessation",null,null,null,null,null,null,{"$f":"SUM(R13:R100)","v":0},{"$f":"SUM(S13:S100)","v":0},{"$f":"SUM(T13:T100)","v":0}]
[null,null,null,null,null,null,null,null,null,null,null,null,null,null,{"$f":"COUNTIF(B13,\">=01/01/2014\")","v":0},{"$f":"COUNTIF(D13:G13,\"*Yes*\")","v":0},{"$f":"COUNTIF(H13:J13,\"*Yes*\")","v":0},{"$f":"COUNTIF(C13,\">=01/01/2014\")","v":0},{"$f":"IF(C13>=1/1/2014,COUNTIF(K13,\"*Not documented*\"),0)","v":0},{"$f":"IF(C13>=1/1/2014,COUNTBLANK(K13))","v":false},null,null,null,null,null,null,null,null,null,null,null,"January","Not documented","Hospital ","Yes "]
[null,null,null,null,null,null,null,null,null,null,null,null,null,null,{"$f":"COUNTIF(B14,\">=01/01/2014\")","v":0},{"$f":"COUNTIF(D14:G14,\"*Yes*\")","v":0},{"$f":"COUNTIF(H14:J14,\"*Yes*\")","v":0},{"$f":"COUNTIF(C14,\">=01/01/2014\")","v":0},{"$f":"IF(C14>=1/1/2014,COUNTIF(K14,\"*Not documented*\"),0)","v":0},{"$f":"IF(C14>=1/1/2014,COUNTBLANK(K14))","v":false},null,null,null,null,null,null,null,null,null,null,null,"February","Clinical Improvement ","Patient's Home","No "]
[null,null,null,null,null,null,null,null,null,null,null,null,null,null,0,0,0,0,0,false,null,null,null,null,null,null,null,null,null,null,null,"March","Death ","Relative's home"]
[null,null,null,null,null,null,null,null,null,null,null,null,null,null,0,0,0,0,0,false,null,null,null,null,null,null,null,null,null,null,null,"April","Deterioration; end of life","Palliative Care Unit/Hospice"]
[null,null,null,null,null,null,null,null,null,null,null,null,null,null,0,0,0,0,0,false,null,null,null,null,null,null,null,null,null,null,null,"May","Discharge","Residential Aged Care facility"]
[null,null,null,null,null,null,null,null,null,null,null,null,null,null,0,0,0,0,0,false,null,null,null,null,null,null,null,null,null,null,null,"June","Moved to non - ACB ward","Other "]
[null,null,null,null,null,null,null,null,null,null,null,null,null,null,0,0,0,0,0,false,null,null,null,null,null,null,null,null,null,null,null,"July","Other"]
[null,null,null,null,null,null,null,null,null,null,null,null,null,null,0,0,0,0,0,false,null,null,null,null,null,null,null,null,null,null,null,"August"]
[null,null,null,null,null,null,null,null,null,null,null,null,null,null,0,0,0,0,0,false,null,null,null,null,null,null,null,null,null,null,null,"September"]
[null,null,null,null,null,null,null,null,null,null,null,null,null,null,0,0,0,0,0,false,null,null,null,null,null,null,null,null,null,null,null,"October"]
[null,null,null,null,null,null,null,null,null,null,null,null,null,null,0,0,0,0,0,false,null,null,null,null,null,null,null,null,null,null,null,"November"]
[null,null,null,null,null,null,null,null,null,null,null,null,null,null,0,0,0,0,0,false,null,null,null,null,null,null,null,null,null,null,null,"December"]
[null,null,null,null,null,null,null,null,null,null,null,null,null,null,0,0,0,0,0,false]
[null,null,null,null,null,null,null,null,null,null,null,null,null,null,0,0,0,0,0,false]
[null,null,null,null,null,null,null,null,null,null,null,null,null,null,0,0,0,0,0,false]
[null,null,null,null,null,null,null,null,null,null,null,null,null,null,0,0,0,0,0,false]
[null,null,null,null,null,null,null,null,null,null,null,null,null,null,0,0,0,0,0,false]
[null,null,null,null,null,null,null,null,null,null,null,null,null,null,0,0,0,0,0,false]
[null,null,null,null,null,null,null,null,null,null,null,null,null,null,0,0,0,0,0,false]
[null,null,null,null,null,null,null,null,null,null,null,null,null,null,0,0,0,0,0,false]
[null,null,null,null,null,null,null,null,null,null,null,null,null,null,0,0,0,0,0,false]
[null,null,null,null,null,null,null,null,null,null,null,null,null,null,0,0,0,0,0,false]
[null,null,null,null,null,null,null,null,null,null,null,null,null,null,0,0,0,0,0,false]
[null,null,null,null,null,null,null,null,null,null,null,null,null,null,0,0,0,0,0,false]
[null,null,null,null,null,null,null,null,null,null,null,null,null,null,0,0,0,0,0,false]
[null,null,null,null,null,null,null,null,null,null,null,null,null,null,0,0,0,0,0,false]
[null,null,null,null,null,null,null,null,null,null,null,null,null,null,0,0,0,0,0,false]
[null,null,null,null,null,null,null,null,null,null,null,null,null,null,0,0,0,0,0,false]
[null,null,null,null,null,null,null,null,null,null,null,null,null,null,0,0,0,0,0,false]
[null,null,null,null,null,null,null,null,null,null,null,null,null,null,0,0,0,0,0,false]
[null,null,null,null,null,null,null,null,null,null,null,null,null,null,0,0,0,0,0,false]
[null,null,null,null,null,null,null,null,null,null,null,null,null,null,0,0,0,0,0,false]
[null,null,null,null,null,null,null,null,null,null,null,null,null,null,0,0,0,0,0,false]
[null,null,null,null,null,null,null,null,null,null,null,null,null,null,0,0,0,0,0,false]
[null,null,null,null,null,null,null,null,null,null,null,null,null,null,0,0,0,0,0,false]
[null,null,null,null,null,null,null,null,null,null,null,null,null,null,0,0,0,0,0,false]
[null,null,null,null,null,null,null,null,null,null,null,null,null,null,0,0,0,0,0,false]
[null,null,null,null,null,null,null,null,null,null,null,null,null,null,0,0,0,0,0,false]
[null,null,null,null,null,null,null,null,null,null,null,null,null,null,0,0,0,0,0,false]
[null,null,null,null,null,null,null,null,null,null,null,null,null,null,0,0,0,0,0,false]
[null,null,null,null,null,null,null,null,null,null,null,null,null,null,0,0,0,0,0,false]
[null,null,null,null,null,null,null,null,null,null,null,null,null,null,0,0,0,0,0,false]
[null,null,null,null,null,null,null,null,null,null,null,null,null,null,0,0,0,0,0,false]
[null,null,null,null,null,null,null,null,null,null,null,null,null,null,0,0,0,0,0,false]
[null,null,null,null,null,null,null,null,null,null,null,null,null,null,0,0,0,0,0,false]
[null,null,null,null,null,null,null,null,null,null,null,null,null,null,0,0,0,0,0,false]
[null,null,null,null,null,null,null,null,null,null,null,null,null,null,0,0,0,0,0,false]
[null,null,null,null,null,null,null,null,null,null,null,null,null,null,0,0,0,0,0,false]
[null,null,null,null,null,null,null,null,null,null,null,null,null,null,0,0,0,0,0,false]
[null,null,null,null,null,null,null,null,null,null,null,null,null,null,0,0,0,0,0,false]
[null,null,null,null,null,null,null,null,null,null,null,null,null,null,0,0,0,0,0,false]
[null,null,null,null,null,null,null,null,null,null,null,null,null,null,0,0,0,0,0,false]
[null,null,null,null,null,null,null,null,null,null,null,null,null,null,0,0,0,0,0,false]
[null,null,null,null,null,null,null,null,null,null,null,null,null,null,0,0,0,0,0,false]
[null,null,null,null,null,null,null,null,null,null,null,null,null,null,0,0,0,0,0,false]
[null,null,null,null,null,null,null,null,null,null,null,null,null,null,0,0,0,0,0,false]
[null,null,null,null,null,null,null,null,null,null,null,null,null,null,0,0,0,0,0,false]
[null,null,null,null,null,null,null,null,null,null,null,null,null,null,0,0,0,0,0,false]
[null,null,null,null,null,null,null,null,null,null,null,null,null,null,0,0,0,0,0,false]
[null,null,null,null,null,null,null,null,null,null,null,null,null,null,0,0,0,0,0,false]
[null,null,null,null,null,null,null,null,null,null,null,null,null,null,0,0,0,0,0,false]
[null,null,null,null,null,null,null,null,null,null,null,null,null,null,0,0,0,0,0,false]
[null,null,null,null,null,null,null,null,null,null,null,null,null,null,0,0,0,0,0,false]
[null,null,null,null,null,null,null,null,null,null,null,null,null,null,0,0,0,0,0,false]
[null,null,null,null,null,null,null,null,null,null,null,null,null,null,0,0,0,0,0,false]
[null,null,null,null,null,null,null,null,null,null,null,null,null,null,{"$f":"COUNTIF(B78,\">=01/01/2014\")","v":0},{"$f":"COUNTIF(D78:G78,\"*Yes*\")","v":0},{"$f":"COUNTIF(H78:J78,\"*Yes*\")","v":0},{"$f":"COUNTIF(C78,\">=01/01/2014\")","v":0},{"$f":"IF(C78>=1/1/2014,COUNTIF(K78,\"*Not documented*\"),0)","v":0},{"$f":"IF(C78>=1/1/2014,COUNTBLANK(K78))","v":false}]
[null,null,null,null,null,null,null,null,null,null,null,null,null,null,0,0,0,0,0,false]
[null,null,null,null,null,null,null,null,null,null,null,null,null,null,0,0,0,0,0,false]
[null,null,null,null,null,null,null,null,null,null,null,null,null,null,0,0,0,0,0,false]
[null,null,null,null,null,null,null,null,null,null,null,null,null,null,0,0,0,0,0,false]
[null,null,null,null,null,null,null,null,null,null,null,null,null,null,0,0,0,0,0,false]
[null,null,null,null,null,null,null,null,null,null,null,null,null,null,0,0,0,0,0,false]
[null,null,null,null,null,null,null,null,null,null,null,null,null,null,0,0,0,0,0,false]
[null,null,null,null,null,null,null,null,null,null,null,null,null,null,0,0,0,0,0,false]
[null,null,null,null,null,null,null,null,null,null,null,null,null,null,0,0,0,0,0,false]
[null,null,null,null,null,null,null,null,null,null,null,null,null,null,0,0,0,0,0,false]
[null,null,null,null,null,null,null,null,null,null,null,null,null,null,0,0,0,0,0,false]
[null,null,null,null,null,null,null,null,null,null,null,null,null,null,0,0,0,0,0,false]
[null,null,null,null,null,null,null,null,null,null,null,null,null,null,0,0,0,0,0,false]
[null,null,null,null,null,null,null,null,null,null,null,null,null,null,0,0,0,0,0,false]
[null,null,null,null,null,null,null,null,null,null,null,null,null,null,0,0,0,0,0,false]
[null,null,null,null,null,null,null,null,null,null,null,null,null,null,0,0,0,0,0,false]
[null,null,null,null,null,null,null,null,null,null,null,null,null,null,0,0,0,0,0,false]
[null,null,null,null,null,null,null,null,null,null,null,null,null,null,0,0,0,0,0,false]
[null,null,null,null,null,null,null,null,null,null,null,null,null,null,0,0,0,0,0,false]
[null,null,null,null,null,null,null,null,null,null,null,null,null,null,0,0,0,0,0,false]
[null,null,null,null,null,null,null,null,null,null,null,null,null,null,0,0,0,0,0,false]
[null,null,null,null,null,null,null,null,null,null,null,null,null,null,0,0,0,0,0,false]

{"sheet":"April","index":4,"n_rows":100,"n_cols":35,"rows_kept":100,"cut":false,"hidden":false,"merged":[[9,7,9,9],[10,3,10,5],[5,1,5,6],[6,1,6,6],[9,0,9,2],[9,3,9,6]]}
[]
[null,"Patients commencing AMBER","All day one interventions completed","Patient monitored daily","Reason for cessation documented"]
[null,{"$f":"SUM(O13:O105)","v":0},{"$f":"COUNTIF(P13:P105,\">=4\")/B3","v":{"$error":"#DIV/0!"}},{"$f":"COUNTIF(Q13:Q105,\">=3\")/B3","v":{"$error":"#DIV/0!"}},{"$f":"(SUM(R13:R100)-SUM(S13:T100))/SUM(R13:R100)","v":{"$error":"#DIV/0!"}},"   Step 2: Enter these totals on the \"Monthly_Data_For_Graphs\" page"]
[]
["Step 1: Enter the data for each patient on the form below"]
["Facility:   "]
["Ward or Clinical Unit:   "]
["Month:   ","March"]
[]
["Demographic information ",null,null,"Day 1 Interventions ",null,null,null,"Daily ACT monitoring ",null,null,"Cessation Details","Further comments, patient story or outcomes "]
[null,null,null,"within 4 hours of bundle initiation",null,null,"within 12 hours "]
["Primary diagnosis of patient","Date AMBER care bundle commenced ","Date AMBER care bundle ceased","medical plan document in progress notes","escalation decision documented - this includes both rapid response and clinical review "," resuscitation plan completed "," patient/carer discussion documented in medical record"," AMBER status confirmed or documented"," medical change documented"," talked to patient or carer re management plan","Reason for AMBER cessation",null,null,null,null,null,null,{"$f":"SUM(R13:R100)","v":0},{"$f":"SUM(S13:S100)","v":0},{"$f":"SUM(T13:T100)","v":0}]
[null,null,null,null,null,null,null,null,null,null,null,null,null,null,{"$f":"COUNTIF(B13,\">=01/01/2014\")","v":0},{"$f":"COUNTIF(D13:G13,\"*Yes*\")","v":0},{"$f":"COUNTIF(H13:J13,\"*Yes*\")","v":0},{"$f":"COUNTIF(C13,\">=01/01/2014\")","v":0},{"$f":"IF(C13>=1/1/2014,COUNTIF(K13,\"*Not documented*\"),0)","v":0},{"$f":"IF(C13>=1/1/2014,COUNTBLANK(K13))","v":false},null,null,null,null,null,null,null,null,null,null,null,"January","Not documented","Hospital ","Yes "]
[null,null,null,null,null,null,null,null,null,null,null,null,null,null,{"$f":"COUNTIF(B14,\">=01/01/2014\")","v":0},{"$f":"COUNTIF(D14:G14,\"*Yes*\")","v":0},{"$f":"COUNTIF(H14:J14,\"*Yes*\")","v":0},{"$f":"COUNTIF(C14,\">=01/01/2014\")","v":0},{"$f":"IF(C14>=1/1/2014,COUNTIF(K14,\"*Not documented*\"),0)","v":0},{"$f":"IF(C14>=1/1/2014,COUNTBLANK(K14))","v":false},null,null,null,null,null,null,null,null,null,null,null,"February","Clinical Improvement ","Patient's Home","No "]
[null,null,null,null,null,null,null,null,null,null,null,null,null,null,0,0,0,0,0,false,null,null,null,null,null,null,null,null,null,null,null,"March","Death ","Relative's home"]
[null,null,null,null,null,null,null,null,null,null,null,null,null,null,0,0,0,0,0,false,null,null,null,null,null,null,null,null,null,null,null,"April","Deterioration; end of life","Palliative Care Unit/Hospice"]
[null,null,null,null,null,null,null,null,null,null,null,null,null,null,0,0,0,0,0,false,null,null,null,null,null,null,null,null,null,null,null,"May","Discharge","Residential Aged Care facility"]
[null,null,null,null,null,null,null,null,null,null,null,null,null,null,0,0,0,0,0,false,null,null,null,null,null,null,null,null,null,null,null,"June","Moved to non - ACB ward","Other "]
[null,null,null,null,null,null,null,null,null,null,null,null,null,null,0,0,0,0,0,false,null,null,null,null,null,null,null,null,null,null,null,"July","Other"]
[null,null,null,null,null,null,null,null,null,null,null,null,null,null,0,0,0,0,0,false,null,null,null,null,null,null,null,null,null,null,null,"August"]
[null,null,null,null,null,null,null,null,null,null,null,null,null,null,0,0,0,0,0,false,null,null,null,null,null,null,null,null,null,null,null,"September"]
[null,null,null,null,null,null,null,null,null,null,null,null,null,null,0,0,0,0,0,false,null,null,null,null,null,null,null,null,null,null,null,"October"]
[null,null,null,null,null,null,null,null,null,null,null,null,null,null,0,0,0,0,0,false,null,null,null,null,null,null,null,null,null,null,null,"November"]
[null,null,null,null,null,null,null,null,null,null,null,null,null,null,0,0,0,0,0,false,null,null,null,null,null,null,null,null,null,null,null,"December"]
[null,null,null,null,null,null,null,null,null,null,null,null,null,null,0,0,0,0,0,false]
[null,null,null,null,null,null,null,null,null,null,null,null,null,null,0,0,0,0,0,false]
[null,null,null,null,null,null,null,null,null,null,null,null,null,null,0,0,0,0,0,false]
[null,null,null,null,null,null,null,null,null,null,null,null,null,null,0,0,0,0,0,false]
[null,null,null,null,null,null,null,null,null,null,null,null,null,null,0,0,0,0,0,false]
[null,null,null,null,null,null,null,null,null,null,null,null,null,null,0,0,0,0,0,false]
[null,null,null,null,null,null,null,null,null,null,null,null,null,null,0,0,0,0,0,false]
[null,null,null,null,null,null,null,null,null,null,null,null,null,null,0,0,0,0,0,false]
[null,null,null,null,null,null,null,null,null,null,null,null,null,null,0,0,0,0,0,false]
[null,null,null,null,null,null,null,null,null,null,null,null,null,null,0,0,0,0,0,false]
[null,null,null,null,null,null,null,null,null,null,null,null,null,null,0,0,0,0,0,false]
[null,null,null,null,null,null,null,null,null,null,null,null,null,null,0,0,0,0,0,false]
[null,null,null,null,null,null,null,null,null,null,null,null,null,null,0,0,0,0,0,false]
[null,null,null,null,null,null,null,null,null,null,null,null,null,null,0,0,0,0,0,false]
[null,null,null,null,null,null,null,null,null,null,null,null,null,null,0,0,0,0,0,false]
[null,null,null,null,null,null,null,null,null,null,null,null,null,null,0,0,0,0,0,false]
[null,null,null,null,null,null,null,null,null,null,null,null,null,null,0,0,0,0,0,false]
[null,null,null,null,null,null,null,null,null,null,null,null,null,null,0,0,0,0,0,false]
[null,null,null,null,null,null,null,null,null,null,null,null,null,null,0,0,0,0,0,false]
[null,null,null,null,null,null,null,null,null,null,null,null,null,null,0,0,0,0,0,false]
[null,null,null,null,null,null,null,null,null,null,null,null,null,null,0,0,0,0,0,false]
[null,null,null,null,null,null,null,null,null,null,null,null,null,null,0,0,0,0,0,false]
[null,null,null,null,null,null,null,null,null,null,null,null,null,null,0,0,0,0,0,false]
[null,null,null,null,null,null,null,null,null,null,null,null,null,null,0,0,0,0,0,false]
[null,null,null,null,null,null,null,null,null,null,null,null,null,null,0,0,0,0,0,false]
[null,null,null,null,null,null,null,null,null,null,null,null,null,null,0,0,0,0,0,false]
[null,null,null,null,null,null,null,null,null,null,null,null,null,null,0,0,0,0,0,false]
[null,null,null,null,null,null,null,null,null,null,null,null,null,null,0,0,0,0,0,false]
[null,null,null,null,null,null,null,null,null,null,null,null,null,null,0,0,0,0,0,false]
[null,null,null,null,null,null,null,null,null,null,null,null,null,null,0,0,0,0,0,false]
[null,null,null,null,null,null,null,null,null,null,null,null,null,null,0,0,0,0,0,false]
[null,null,null,null,null,null,null,null,null,null,null,null,null,null,0,0,0,0,0,false]
[null,null,null,null,null,null,null,null,null,null,null,null,null,null,0,0,0,0,0,false]
[null,null,null,null,null,null,null,null,null,null,null,null,null,null,0,0,0,0,0,false]
[null,null,null,null,null,null,null,null,null,null,null,null,null,null,0,0,0,0,0,false]
[null,null,null,null,null,null,null,null,null,null,null,null,null,null,0,0,0,0,0,false]
[null,null,null,null,null,null,null,null,null,null,null,null,null,null,0,0,0,0,0,false]
[null,null,null,null,null,null,null,null,null,null,null,null,null,null,0,0,0,0,0,false]
[null,null,null,null,null,null,null,null,null,null,null,null,null,null,0,0,0,0,0,false]
[null,null,null,null,null,null,null,null,null,null,null,null,null,null,0,0,0,0,0,false]
[null,null,null,null,null,null,null,null,null,null,null,null,null,null,0,0,0,0,0,false]
[null,null,null,null,null,null,null,null,null,null,null,null,null,null,0,0,0,0,0,false]
[null,null,null,null,null,null,null,null,null,null,null,null,null,null,0,0,0,0,0,false]
[null,null,null,null,null,null,null,null,null,null,null,null,null,null,0,0,0,0,0,false]
[null,null,null,null,null,null,null,null,null,null,null,null,null,null,0,0,0,0,0,false]
[null,null,null,null,null,null,null,null,null,null,null,null,null,null,0,0,0,0,0,false]
[null,null,null,null,null,null,null,null,null,null,null,null,null,null,0,0,0,0,0,false]
[null,null,null,null,null,null,null,null,null,null,null,null,null,null,0,0,0,0,0,false]
[null,null,null,null,null,null,null,null,null,null,null,null,null,null,0,0,0,0,0,false]
[null,null,null,null,null,null,null,null,null,null,null,null,null,null,0,0,0,0,0,false]
[null,null,null,null,null,null,null,null,null,null,null,null,null,null,0,0,0,0,0,false]
[null,null,null,null,null,null,null,null,null,null,null,null,null,null,0,0,0,0,0,false]
[null,null,null,null,null,null,null,null,null,null,null,null,null,null,0,0,0,0,0,false]
[null,null,null,null,null,null,null,null,null,null,null,null,null,null,{"$f":"COUNTIF(B78,\">=01/01/2014\")","v":0},{"$f":"COUNTIF(D78:G78,\"*Yes*\")","v":0},{"$f":"COUNTIF(H78:J78,\"*Yes*\")","v":0},{"$f":"COUNTIF(C78,\">=01/01/2014\")","v":0},{"$f":"IF(C78>=1/1/2014,COUNTIF(K78,\"*Not documented*\"),0)","v":0},{"$f":"IF(C78>=1/1/2014,COUNTBLANK(K78))","v":false}]
[null,null,null,null,null,null,null,null,null,null,null,null,null,null,0,0,0,0,0,false]
[null,null,null,null,null,null,null,null,null,null,null,null,null,null,0,0,0,0,0,false]
[null,null,null,null,null,null,null,null,null,null,null,null,null,null,0,0,0,0,0,false]
[null,null,null,null,null,null,null,null,null,null,null,null,null,null,0,0,0,0,0,false]
[null,null,null,null,null,null,null,null,null,null,null,null,null,null,0,0,0,0,0,false]
[null,null,null,null,null,null,null,null,null,null,null,null,null,null,0,0,0,0,0,false]
[null,null,null,null,null,null,null,null,null,null,null,null,null,null,0,0,0,0,0,false]
[null,null,null,null,null,null,null,null,null,null,null,null,null,null,0,0,0,0,0,false]
[null,null,null,null,null,null,null,null,null,null,null,null,null,null,0,0,0,0,0,false]
[null,null,null,null,null,null,null,null,null,null,null,null,null,null,0,0,0,0,0,false]
[null,null,null,null,null,null,null,null,null,null,null,null,null,null,0,0,0,0,0,false]
[null,null,null,null,null,null,null,null,null,null,null,null,null,null,0,0,0,0,0,false]
[null,null,null,null,null,null,null,null,null,null,null,null,null,null,0,0,0,0,0,false]
[null,null,null,null,null,null,null,null,null,null,null,null,null,null,0,0,0,0,0,false]
[null,null,null,null,null,null,null,null,null,null,null,null,null,null,0,0,0,0,0,false]
[null,null,null,null,null,null,null,null,null,null,null,null,null,null,0,0,0,0,0,false]
[null,null,null,null,null,null,null,null,null,null,null,null,null,null,0,0,0,0,0,false]
[null,null,null,null,null,null,null,null,null,null,null,null,null,null,0,0,0,0,0,false]
[null,null,null,null,null,null,null,null,null,null,null,null,null,null,0,0,0,0,0,false]
[null,null,null,null,null,null,null,null,null,null,null,null,null,null,0,0,0,0,0,false]
[null,null,null,null,null,null,null,null,null,null,null,null,null,null,0,0,0,0,0,false]
[null,null,null,null,null,null,null,null,null,null,null,null,null,null,0,0,0,0,0,false]

{"sheet":"May","index":5,"n_rows":100,"n_cols":35,"rows_kept":100,"cut":false,"hidden":false,"merged":[[9,7,9,9],[10,3,10,5],[5,1,5,6],[6,1,6,6],[9,0,9,2],[9,3,9,6]]}
[]
[null,"Patients commencing AMBER","All day one interventions completed","Patient monitored daily","Reason for cessation documented"]
[null,{"$f":"SUM(O13:O105)","v":0},{"$f":"COUNTIF(P13:P105,\">=4\")/B3","v":{"$error":"#DIV/0!"}},{"$f":"COUNTIF(Q13:Q105,\">=3\")/B3","v":{"$error":"#DIV/0!"}},{"$f":"(SUM(R13:R100)-SUM(S13:T100))/SUM(R13:R100)","v":{"$error":"#DIV/0!"}},"   Step 2: Enter these totals on the \"Monthly_Data_For_Graphs\" page"]
[]
["Step 1: Enter the data for each patient on the form below"]
["Facility:   "]
["Ward or Clinical Unit:   "]
["Month:   ","March"]
[]
["Demographic information ",null,null,"Day 1 Interventions ",null,null,null,"Daily ACT monitoring ",null,null,"Cessation Details","Further comments, patient story or outcomes "]
[null,null,null,"within 4 hours of bundle initiation",null,null,"within 12 hours "]
["Primary diagnosis of patient","Date AMBER care bundle commenced ","Date AMBER care bundle ceased","medical plan document in progress notes","escalation decision documented - this includes both rapid response and clinical review "," resuscitation plan completed "," patient/carer discussion documented in medical record"," AMBER status confirmed or documented"," medical change documented"," talked to patient or carer re management plan","Reason for AMBER cessation",null,null,null,null,null,null,{"$f":"SUM(R13:R100)","v":0},{"$f":"SUM(S13:S100)","v":0},{"$f":"SUM(T13:T100)","v":0}]
[null,null,null,null,null,null,null,null,null,null,null,null,null,null,{"$f":"COUNTIF(B13,\">=01/01/2014\")","v":0},{"$f":"COUNTIF(D13:G13,\"*Yes*\")","v":0},{"$f":"COUNTIF(H13:J13,\"*Yes*\")","v":0},{"$f":"COUNTIF(C13,\">=01/01/2014\")","v":0},{"$f":"IF(C13>=1/1/2014,COUNTIF(K13,\"*Not documented*\"),0)","v":0},{"$f":"IF(C13>=1/1/2014,COUNTBLANK(K13))","v":false},null,null,null,null,null,null,null,null,null,null,null,"January","Not documented","Hospital ","Yes "]
[null,null,null,null,null,null,null,null,null,null,null,null,null,null,{"$f":"COUNTIF(B14,\">=01/01/2014\")","v":0},{"$f":"COUNTIF(D14:G14,\"*Yes*\")","v":0},{"$f":"COUNTIF(H14:J14,\"*Yes*\")","v":0},{"$f":"COUNTIF(C14,\">=01/01/2014\")","v":0},{"$f":"IF(C14>=1/1/2014,COUNTIF(K14,\"*Not documented*\"),0)","v":0},{"$f":"IF(C14>=1/1/2014,COUNTBLANK(K14))","v":false},null,null,null,null,null,null,null,null,null,null,null,"February","Clinical Improvement ","Patient's Home","No "]
[null,null,null,null,null,null,null,null,null,null,null,null,null,null,0,0,0,0,0,false,null,null,null,null,null,null,null,null,null,null,null,"March","Death ","Relative's home"]
[null,null,null,null,null,null,null,null,null,null,null,null,null,null,0,0,0,0,0,false,null,null,null,null,null,null,null,null,null,null,null,"April","Deterioration; end of life","Palliative Care Unit/Hospice"]
[null,null,null,null,null,null,null,null,null,null,null,null,null,null,0,0,0,0,0,false,null,null,null,null,null,null,null,null,null,null,null,"May","Discharge","Residential Aged Care facility"]
[null,null,null,null,null,null,null,null,null,null,null,null,null,null,0,0,0,0,0,false,null,null,null,null,null,null,null,null,null,null,null,"June","Moved to non - ACB ward","Other "]
[null,null,null,null,null,null,null,null,null,null,null,null,null,null,0,0,0,0,0,false,null,null,null,null,null,null,null,null,null,null,null,"July","Other"]
[null,null,null,null,null,null,null,null,null,null,null,null,null,null,0,0,0,0,0,false,null,null,null,null,null,null,null,null,null,null,null,"August"]
[null,null,null,null,null,null,null,null,null,null,null,null,null,null,0,0,0,0,0,false,null,null,null,null,null,null,null,null,null,null,null,"September"]
[null,null,null,null,null,null,null,null,null,null,null,null,null,null,0,0,0,0,0,false,null,null,null,null,null,null,null,null,null,null,null,"October"]
[null,null,null,null,null,null,null,null,null,null,null,null,null,null,0,0,0,0,0,false,null,null,null,null,null,null,null,null,null,null,null,"November"]
[null,null,null,null,null,null,null,null,null,null,null,null,null,null,0,0,0,0,0,false,null,null,null,null,null,null,null,null,null,null,null,"December"]
[null,null,null,null,null,null,null,null,null,null,null,null,null,null,0,0,0,0,0,false]
[null,null,null,null,null,null,null,null,null,null,null,null,null,null,0,0,0,0,0,false]
[null,null,null,null,null,null,null,null,null,null,null,null,null,null,0,0,0,0,0,false]
[null,null,null,null,null,null,null,null,null,null,null,null,null,null,0,0,0,0,0,false]
[null,null,null,null,null,null,null,null,null,null,null,null,null,null,0,0,0,0,0,false]
[null,null,null,null,null,null,null,null,null,null,null,null,null,null,0,0,0,0,0,false]
[null,null,null,null,null,null,null,null,null,null,null,null,null,null,0,0,0,0,0,false]
[null,null,null,null,null,null,null,null,null,null,null,null,null,null,0,0,0,0,0,false]
[null,null,null,null,null,null,null,null,null,null,null,null,null,null,0,0,0,0,0,false]
[null,null,null,null,null,null,null,null,null,null,null,null,null,null,0,0,0,0,0,false]
[null,null,null,null,null,null,null,null,null,null,null,null,null,null,0,0,0,0,0,false]
[null,null,null,null,null,null,null,null,null,null,null,null,null,null,0,0,0,0,0,false]
[null,null,null,null,null,null,null,null,null,null,null,null,null,null,0,0,0,0,0,false]
[null,null,null,null,null,null,null,null,null,null,null,null,null,null,0,0,0,0,0,false]
[null,null,null,null,null,null,null,null,null,null,null,null,null,null,0,0,0,0,0,false]
[null,null,null,null,null,null,null,null,null,null,null,null,null,null,0,0,0,0,0,false]
[null,null,null,null,null,null,null,null,null,null,null,null,null,null,0,0,0,0,0,false]
[null,null,null,null,null,null,null,null,null,null,null,null,null,null,0,0,0,0,0,false]
[null,null,null,null,null,null,null,null,null,null,null,null,null,null,0,0,0,0,0,false]
[null,null,null,null,null,null,null,null,null,null,null,null,null,null,0,0,0,0,0,false]
[null,null,null,null,null,null,null,null,null,null,null,null,null,null,0,0,0,0,0,false]
[null,null,null,null,null,null,null,null,null,null,null,null,null,null,0,0,0,0,0,false]
[null,null,null,null,null,null,null,null,null,null,null,null,null,null,0,0,0,0,0,false]
[null,null,null,null,null,null,null,null,null,null,null,null,null,null,0,0,0,0,0,false]
[null,null,null,null,null,null,null,null,null,null,null,null,null,null,0,0,0,0,0,false]
[null,null,null,null,null,null,null,null,null,null,null,null,null,null,0,0,0,0,0,false]
[null,null,null,null,null,null,null,null,null,null,null,null,null,null,0,0,0,0,0,false]
[null,null,null,null,null,null,null,null,null,null,null,null,null,null,0,0,0,0,0,false]
[null,null,null,null,null,null,null,null,null,null,null,null,null,null,0,0,0,0,0,false]
[null,null,null,null,null,null,null,null,null,null,null,null,null,null,0,0,0,0,0,false]
[null,null,null,null,null,null,null,null,null,null,null,null,null,null,0,0,0,0,0,false]
[null,null,null,null,null,null,null,null,null,null,null,null,null,null,0,0,0,0,0,false]
[null,null,null,null,null,null,null,null,null,null,null,null,null,null,0,0,0,0,0,false]
[null,null,null,null,null,null,null,null,null,null,null,null,null,null,0,0,0,0,0,false]
[null,null,null,null,null,null,null,null,null,null,null,null,null,null,0,0,0,0,0,false]
[null,null,null,null,null,null,null,null,null,null,null,null,null,null,0,0,0,0,0,false]
[null,null,null,null,null,null,null,null,null,null,null,null,null,null,0,0,0,0,0,false]
[null,null,null,null,null,null,null,null,null,null,null,null,null,null,0,0,0,0,0,false]
[null,null,null,null,null,null,null,null,null,null,null,null,null,null,0,0,0,0,0,false]
[null,null,null,null,null,null,null,null,null,null,null,null,null,null,0,0,0,0,0,false]
[null,null,null,null,null,null,null,null,null,null,null,null,null,null,0,0,0,0,0,false]
[null,null,null,null,null,null,null,null,null,null,null,null,null,null,0,0,0,0,0,false]
[null,null,null,null,null,null,null,null,null,null,null,null,null,null,0,0,0,0,0,false]
[null,null,null,null,null,null,null,null,null,null,null,null,null,null,0,0,0,0,0,false]
[null,null,null,null,null,null,null,null,null,null,null,null,null,null,0,0,0,0,0,false]
[null,null,null,null,null,null,null,null,null,null,null,null,null,null,0,0,0,0,0,false]
[null,null,null,null,null,null,null,null,null,null,null,null,null,null,0,0,0,0,0,false]
[null,null,null,null,null,null,null,null,null,null,null,null,null,null,0,0,0,0,0,false]
[null,null,null,null,null,null,null,null,null,null,null,null,null,null,0,0,0,0,0,false]
[null,null,null,null,null,null,null,null,null,null,null,null,null,null,0,0,0,0,0,false]
[null,null,null,null,null,null,null,null,null,null,null,null,null,null,0,0,0,0,0,false]
[null,null,null,null,null,null,null,null,null,null,null,null,null,null,0,0,0,0,0,false]
[null,null,null,null,null,null,null,null,null,null,null,null,null,null,0,0,0,0,0,false]
[null,null,null,null,null,null,null,null,null,null,null,null,null,null,{"$f":"COUNTIF(B78,\">=01/01/2014\")","v":0},{"$f":"COUNTIF(D78:G78,\"*Yes*\")","v":0},{"$f":"COUNTIF(H78:J78,\"*Yes*\")","v":0},{"$f":"COUNTIF(C78,\">=01/01/2014\")","v":0},{"$f":"IF(C78>=1/1/2014,COUNTIF(K78,\"*Not documented*\"),0)","v":0},{"$f":"IF(C78>=1/1/2014,COUNTBLANK(K78))","v":false}]
[null,null,null,null,null,null,null,null,null,null,null,null,null,null,0,0,0,0,0,false]
[null,null,null,null,null,null,null,null,null,null,null,null,null,null,0,0,0,0,0,false]
[null,null,null,null,null,null,null,null,null,null,null,null,null,null,0,0,0,0,0,false]
[null,null,null,null,null,null,null,null,null,null,null,null,null,null,0,0,0,0,0,false]
[null,null,null,null,null,null,null,null,null,null,null,null,null,null,0,0,0,0,0,false]
[null,null,null,null,null,null,null,null,null,null,null,null,null,null,0,0,0,0,0,false]
[null,null,null,null,null,null,null,null,null,null,null,null,null,null,0,0,0,0,0,false]
[null,null,null,null,null,null,null,null,null,null,null,null,null,null,0,0,0,0,0,false]
[null,null,null,null,null,null,null,null,null,null,null,null,null,null,0,0,0,0,0,false]
[null,null,null,null,null,null,null,null,null,null,null,null,null,null,0,0,0,0,0,false]
[null,null,null,null,null,null,null,null,null,null,null,null,null,null,0,0,0,0,0,false]
[null,null,null,null,null,null,null,null,null,null,null,null,null,null,0,0,0,0,0,false]
[null,null,null,null,null,null,null,null,null,null,null,null,null,null,0,0,0,0,0,false]
[null,null,null,null,null,null,null,null,null,null,null,null,null,null,0,0,0,0,0,false]
[null,null,null,null,null,null,null,null,null,null,null,null,null,null,0,0,0,0,0,false]
[null,null,null,null,null,null,null,null,null,null,null,null,null,null,0,0,0,0,0,false]
[null,null,null,null,null,null,null,null,null,null,null,null,null,null,0,0,0,0,0,false]
[null,null,null,null,null,null,null,null,null,null,null,null,null,null,0,0,0,0,0,false]
[null,null,null,null,null,null,null,null,null,null,null,null,null,null,0,0,0,0,0,false]
[null,null,null,null,null,null,null,null,null,null,null,null,null,null,0,0,0,0,0,false]
[null,null,null,null,null,null,null,null,null,null,null,null,null,null,0,0,0,0,0,false]
[null,null,null,null,null,null,null,null,null,null,null,null,null,null,0,0,0,0,0,false]

{"sheet":"June","index":6,"n_rows":100,"n_cols":35,"rows_kept":100,"cut":false,"hidden":false,"merged":[[9,7,9,9],[10,3,10,5],[5,1,5,6],[6,1,6,6],[9,0,9,2],[9,3,9,6]]}
[]
[null,"Patients commencing AMBER","All day one interventions completed","Patient monitored daily","Reason for cessation documented"]
[null,{"$f":"SUM(O13:O105)","v":0},{"$f":"COUNTIF(P13:P105,\">=4\")/B3","v":{"$error":"#DIV/0!"}},{"$f":"COUNTIF(Q13:Q105,\">=3\")/B3","v":{"$error":"#DIV/0!"}},{"$f":"(SUM(R13:R100)-SUM(S13:T100))/SUM(R13:R100)","v":{"$error":"#DIV/0!"}},"   Step 2: Enter these totals on the \"Monthly_Data_For_Graphs\" page"]
[]
["Step 1: Enter the data for each patient on the form below"]
["Facility:   "]
["Ward or Clinical Unit:   "]
["Month:   ","March"]
[]
["Demographic information ",null,null,"Day 1 Interventions ",null,null,null,"Daily ACT monitoring ",null,null,"Cessation Details","Further comments, patient story or outcomes "]
[null,null,null,"within 4 hours of bundle initiation",null,null,"within 12 hours "]
["Primary diagnosis of patient","Date AMBER care bundle commenced ","Date AMBER care bundle ceased","medical plan document in progress notes","escalation decision documented - this includes both rapid response and clinical review "," resuscitation plan completed "," patient/carer discussion documented in medical record"," AMBER status confirmed or documented"," medical change documented"," talked to patient or carer re management plan","Reason for AMBER cessation",null,null,null,null,null,null,{"$f":"SUM(R13:R100)","v":0},{"$f":"SUM(S13:S100)","v":0},{"$f":"SUM(T13:T100)","v":0}]
[null,null,null,null,null,null,null,null,null,null,null,null,null,null,{"$f":"COUNTIF(B13,\">=01/01/2014\")","v":0},{"$f":"COUNTIF(D13:G13,\"*Yes*\")","v":0},{"$f":"COUNTIF(H13:J13,\"*Yes*\")","v":0},{"$f":"COUNTIF(C13,\">=01/01/2014\")","v":0},{"$f":"IF(C13>=1/1/2014,COUNTIF(K13,\"*Not documented*\"),0)","v":0},{"$f":"IF(C13>=1/1/2014,COUNTBLANK(K13))","v":false},null,null,null,null,null,null,null,null,null,null,null,"January","Not documented","Hospital ","Yes "]
[null,null,null,null,null,null,null,null,null,null,null,null,null,null,{"$f":"COUNTIF(B14,\">=01/01/2014\")","v":0},{"$f":"COUNTIF(D14:G14,\"*Yes*\")","v":0},{"$f":"COUNTIF(H14:J14,\"*Yes*\")","v":0},{"$f":"COUNTIF(C14,\">=01/01/2014\")","v":0},{"$f":"IF(C14>=1/1/2014,COUNTIF(K14,\"*Not documented*\"),0)","v":0},{"$f":"IF(C14>=1/1/2014,COUNTBLANK(K14))","v":false},null,null,null,null,null,null,null,null,null,null,null,"February","Clinical Improvement ","Patient's Home","No "]
[null,null,null,null,null,null,null,null,null,null,null,null,null,null,0,0,0,0,0,false,null,null,null,null,null,null,null,null,null,null,null,"March","Death ","Relative's home"]
[null,null,null,null,null,null,null,null,null,null,null,null,null,null,0,0,0,0,0,false,null,null,null,null,null,null,null,null,null,null,null,"April","Deterioration; end of life","Palliative Care Unit/Hospice"]
[null,null,null,null,null,null,null,null,null,null,null,null,null,null,0,0,0,0,0,false,null,null,null,null,null,null,null,null,null,null,null,"May","Discharge","Residential Aged Care facility"]
[null,null,null,null,null,null,null,null,null,null,null,null,null,null,0,0,0,0,0,false,null,null,null,null,null,null,null,null,null,null,null,"June","Moved to non - ACB ward","Other "]
[null,null,null,null,null,null,null,null,null,null,null,null,null,null,0,0,0,0,0,false,null,null,null,null,null,null,null,null,null,null,null,"July","Other"]
[null,null,null,null,null,null,null,null,null,null,null,null,null,null,0,0,0,0,0,false,null,null,null,null,null,null,null,null,null,null,null,"August"]
[null,null,null,null,null,null,null,null,null,null,null,null,null,null,0,0,0,0,0,false,null,null,null,null,null,null,null,null,null,null,null,"September"]
[null,null,null,null,null,null,null,null,null,null,null,null,null,null,0,0,0,0,0,false,null,null,null,null,null,null,null,null,null,null,null,"October"]
[null,null,null,null,null,null,null,null,null,null,null,null,null,null,0,0,0,0,0,false,null,null,null,null,null,null,null,null,null,null,null,"November"]
[null,null,null,null,null,null,null,null,null,null,null,null,null,null,0,0,0,0,0,false,null,null,null,null,null,null,null,null,null,null,null,"December"]
[null,null,null,null,null,null,null,null,null,null,null,null,null,null,0,0,0,0,0,false]
[null,null,null,null,null,null,null,null,null,null,null,null,null,null,0,0,0,0,0,false]
[null,null,null,null,null,null,null,null,null,null,null,null,null,null,0,0,0,0,0,false]
[null,null,null,null,null,null,null,null,null,null,null,null,null,null,0,0,0,0,0,false]
[null,null,null,null,null,null,null,null,null,null,null,null,null,null,0,0,0,0,0,false]
[null,null,null,null,null,null,null,null,null,null,null,null,null,null,0,0,0,0,0,false]
[null,null,null,null,null,null,null,null,null,null,null,null,null,null,0,0,0,0,0,false]
[null,null,null,null,null,null,null,null,null,null,null,null,null,null,0,0,0,0,0,false]
[null,null,null,null,null,null,null,null,null,null,null,null,null,null,0,0,0,0,0,false]
[null,null,null,null,null,null,null,null,null,null,null,null,null,null,0,0,0,0,0,false]
[null,null,null,null,null,null,null,null,null,null,null,null,null,null,0,0,0,0,0,false]
[null,null,null,null,null,null,null,null,null,null,null,null,null,null,0,0,0,0,0,false]
[null,null,null,null,null,null,null,null,null,null,null,null,null,null,0,0,0,0,0,false]
[null,null,null,null,null,null,null,null,null,null,null,null,null,null,0,0,0,0,0,false]
[null,null,null,null,null,null,null,null,null,null,null,null,null,null,0,0,0,0,0,false]
[null,null,null,null,null,null,null,null,null,null,null,null,null,null,0,0,0,0,0,false]
[null,null,null,null,null,null,null,null,null,null,null,null,null,null,0,0,0,0,0,false]
[null,null,null,null,null,null,null,null,null,null,null,null,null,null,0,0,0,0,0,false]
[null,null,null,null,null,null,null,null,null,null,null,null,null,null,0,0,0,0,0,false]
[null,null,null,null,null,null,null,null,null,null,null,null,null,null,0,0,0,0,0,false]
[null,null,null,null,null,null,null,null,null,null,null,null,null,null,0,0,0,0,0,false]
[null,null,null,null,null,null,null,null,null,null,null,null,null,null,0,0,0,0,0,false]
[null,null,null,null,null,null,null,null,null,null,null,null,null,null,0,0,0,0,0,false]
[null,null,null,null,null,null,null,null,null,null,null,null,null,null,0,0,0,0,0,false]
[null,null,null,null,null,null,null,null,null,null,null,null,null,null,0,0,0,0,0,false]
[null,null,null,null,null,null,null,null,null,null,null,null,null,null,0,0,0,0,0,false]
[null,null,null,null,null,null,null,null,null,null,null,null,null,null,0,0,0,0,0,false]
[null,null,null,null,null,null,null,null,null,null,null,null,null,null,0,0,0,0,0,false]
[null,null,null,null,null,null,null,null,null,null,null,null,null,null,0,0,0,0,0,false]
[null,null,null,null,null,null,null,null,null,null,null,null,null,null,0,0,0,0,0,false]
[null,null,null,null,null,null,null,null,null,null,null,null,null,null,0,0,0,0,0,false]
[null,null,null,null,null,null,null,null,null,null,null,null,null,null,0,0,0,0,0,false]
[null,null,null,null,null,null,null,null,null,null,null,null,null,null,0,0,0,0,0,false]
[null,null,null,null,null,null,null,null,null,null,null,null,null,null,0,0,0,0,0,false]
[null,null,null,null,null,null,null,null,null,null,null,null,null,null,0,0,0,0,0,false]
[null,null,null,null,null,null,null,null,null,null,null,null,null,null,0,0,0,0,0,false]
[null,null,null,null,null,null,null,null,null,null,null,null,null,null,0,0,0,0,0,false]
[null,null,null,null,null,null,null,null,null,null,null,null,null,null,0,0,0,0,0,false]
[null,null,null,null,null,null,null,null,null,null,null,null,null,null,0,0,0,0,0,false]
[null,null,null,null,null,null,null,null,null,null,null,null,null,null,0,0,0,0,0,false]
[null,null,null,null,null,null,null,null,null,null,null,null,null,null,0,0,0,0,0,false]
[null,null,null,null,null,null,null,null,null,null,null,null,null,null,0,0,0,0,0,false]
[null,null,null,null,null,null,null,null,null,null,null,null,null,null,0,0,0,0,0,false]
[null,null,null,null,null,null,null,null,null,null,null,null,null,null,0,0,0,0,0,false]
[null,null,null,null,null,null,null,null,null,null,null,null,null,null,0,0,0,0,0,false]
[null,null,null,null,null,null,null,null,null,null,null,null,null,null,0,0,0,0,0,false]
[null,null,null,null,null,null,null,null,null,null,null,null,null,null,0,0,0,0,0,false]
[null,null,null,null,null,null,null,null,null,null,null,null,null,null,0,0,0,0,0,false]
[null,null,null,null,null,null,null,null,null,null,null,null,null,null,0,0,0,0,0,false]
[null,null,null,null,null,null,null,null,null,null,null,null,null,null,0,0,0,0,0,false]
[null,null,null,null,null,null,null,null,null,null,null,null,null,null,0,0,0,0,0,false]
[null,null,null,null,null,null,null,null,null,null,null,null,null,null,0,0,0,0,0,false]
[null,null,null,null,null,null,null,null,null,null,null,null,null,null,0,0,0,0,0,false]
[null,null,null,null,null,null,null,null,null,null,null,null,null,null,{"$f":"COUNTIF(B78,\">=01/01/2014\")","v":0},{"$f":"COUNTIF(D78:G78,\"*Yes*\")","v":0},{"$f":"COUNTIF(H78:J78,\"*Yes*\")","v":0},{"$f":"COUNTIF(C78,\">=01/01/2014\")","v":0},{"$f":"IF(C78>=1/1/2014,COUNTIF(K78,\"*Not documented*\"),0)","v":0},{"$f":"IF(C78>=1/1/2014,COUNTBLANK(K78))","v":false}]
[null,null,null,null,null,null,null,null,null,null,null,null,null,null,0,0,0,0,0,false]
[null,null,null,null,null,null,null,null,null,null,null,null,null,null,0,0,0,0,0,false]
[null,null,null,null,null,null,null,null,null,null,null,null,null,null,0,0,0,0,0,false]
[null,null,null,null,null,null,null,null,null,null,null,null,null,null,0,0,0,0,0,false]
[null,null,null,null,null,null,null,null,null,null,null,null,null,null,0,0,0,0,0,false]
[null,null,null,null,null,null,null,null,null,null,null,null,null,null,0,0,0,0,0,false]
[null,null,null,null,null,null,null,null,null,null,null,null,null,null,0,0,0,0,0,false]
[null,null,null,null,null,null,null,null,null,null,null,null,null,null,0,0,0,0,0,false]
[null,null,null,null,null,null,null,null,null,null,null,null,null,null,0,0,0,0,0,false]
[null,null,null,null,null,null,null,null,null,null,null,null,null,null,0,0,0,0,0,false]
[null,null,null,null,null,null,null,null,null,null,null,null,null,null,0,0,0,0,0,false]
[null,null,null,null,null,null,null,null,null,null,null,null,null,null,0,0,0,0,0,false]
[null,null,null,null,null,null,null,null,null,null,null,null,null,null,0,0,0,0,0,false]
[null,null,null,null,null,null,null,null,null,null,null,null,null,null,0,0,0,0,0,false]
[null,null,null,null,null,null,null,null,null,null,null,null,null,null,0,0,0,0,0,false]
[null,null,null,null,null,null,null,null,null,null,null,null,null,null,0,0,0,0,0,false]
[null,null,null,null,null,null,null,null,null,null,null,null,null,null,0,0,0,0,0,false]
[null,null,null,null,null,null,null,null,null,null,null,null,null,null,0,0,0,0,0,false]
[null,null,null,null,null,null,null,null,null,null,null,null,null,null,0,0,0,0,0,false]
[null,null,null,null,null,null,null,null,null,null,null,null,null,null,0,0,0,0,0,false]
[null,null,null,null,null,null,null,null,null,null,null,null,null,null,0,0,0,0,0,false]
[null,null,null,null,null,null,null,null,null,null,null,null,null,null,0,0,0,0,0,false]

{"sheet":"July","index":7,"n_rows":100,"n_cols":35,"rows_kept":100,"cut":false,"hidden":false,"merged":[[9,7,9,9],[10,3,10,5],[5,1,5,6],[6,1,6,6],[9,0,9,2],[9,3,9,6]]}
[]
[null,"Patients commencing AMBER","All day one interventions completed","Patient monitored daily","Reason for cessation documented"]
[null,{"$f":"SUM(O13:O105)","v":0},{"$f":"COUNTIF(P13:P105,\">=4\")/B3","v":{"$error":"#DIV/0!"}},{"$f":"COUNTIF(Q13:Q105,\">=3\")/B3","v":{"$error":"#DIV/0!"}},{"$f":"(SUM(R13:R100)-SUM(S13:T100))/SUM(R13:R100)","v":{"$error":"#DIV/0!"}},"   Step 2: Enter these totals on the \"Monthly_Data_For_Graphs\" page"]
[]
["Step 1: Enter the data for each patient on the form below"]
["Facility:   "]
["Ward or Clinical Unit:   "]
["Month:   ","March"]
[]
["Demographic information ",null,null,"Day 1 Interventions ",null,null,null,"Daily ACT monitoring ",null,null,"Cessation Details","Further comments, patient story or outcomes "]
[null,null,null,"within 4 hours of bundle initiation",null,null,"within 12 hours "]
["Primary diagnosis of patient","Date AMBER care bundle commenced ","Date AMBER care bundle ceased","medical plan document in progress notes","escalation decision documented - this includes both rapid response and clinical review "," resuscitation plan completed "," patient/carer discussion documented in medical record"," AMBER status confirmed or documented"," medical change documented"," talked to patient or carer re management plan","Reason for AMBER cessation",null,null,null,null,null,null,{"$f":"SUM(R13:R100)","v":0},{"$f":"SUM(S13:S100)","v":0},{"$f":"SUM(T13:T100)","v":0}]
[null,null,null,null,null,null,null,null,null,null,null,null,null,null,{"$f":"COUNTIF(B13,\">=01/01/2014\")","v":0},{"$f":"COUNTIF(D13:G13,\"*Yes*\")","v":0},{"$f":"COUNTIF(H13:J13,\"*Yes*\")","v":0},{"$f":"COUNTIF(C13,\">=01/01/2014\")","v":0},{"$f":"IF(C13>=1/1/2014,COUNTIF(K13,\"*Not documented*\"),0)","v":0},{"$f":"IF(C13>=1/1/2014,COUNTBLANK(K13))","v":false},null,null,null,null,null,null,null,null,null,null,null,"January","Not documented","Hospital ","Yes "]
[null,null,null,null,null,null,null,null,null,null,null,null,null,null,{"$f":"COUNTIF(B14,\">=01/01/2014\")","v":0},{"$f":"COUNTIF(D14:G14,\"*Yes*\")","v":0},{"$f":"COUNTIF(H14:J14,\"*Yes*\")","v":0},{"$f":"COUNTIF(C14,\">=01/01/2014\")","v":0},{"$f":"IF(C14>=1/1/2014,COUNTIF(K14,\"*Not documented*\"),0)","v":0},{"$f":"IF(C14>=1/1/2014,COUNTBLANK(K14))","v":false},null,null,null,null,null,null,null,null,null,null,null,"February","Clinical Improvement ","Patient's Home","No "]
[null,null,null,null,null,null,null,null,null,null,null,null,null,null,0,0,0,0,0,false,null,null,null,null,null,null,null,null,null,null,null,"March","Death ","Relative's home"]
[null,null,null,null,null,null,null,null,null,null,null,null,null,null,0,0,0,0,0,false,null,null,null,null,null,null,null,null,null,null,null,"April","Deterioration; end of life","Palliative Care Unit/Hospice"]
[null,null,null,null,null,null,null,null,null,null,null,null,null,null,0,0,0,0,0,false,null,null,null,null,null,null,null,null,null,null,null,"May","Discharge","Residential Aged Care facility"]
[null,null,null,null,null,null,null,null,null,null,null,null,null,null,0,0,0,0,0,false,null,null,null,null,null,null,null,null,null,null,null,"June","Moved to non - ACB ward","Other "]
[null,null,null,null,null,null,null,null,null,null,null,null,null,null,0,0,0,0,0,false,null,null,null,null,null,null,null,null,null,null,null,"July","Other"]
[null,null,null,null,null,null,null,null,null,null,null,null,null,null,0,0,0,0,0,false,null,null,null,null,null,null,null,null,null,null,null,"August"]
[null,null,null,null,null,null,null,null,null,null,null,null,null,null,0,0,0,0,0,false,null,null,null,null,null,null,null,null,null,null,null,"September"]
[null,null,null,null,null,null,null,null,null,null,null,null,null,null,0,0,0,0,0,false,null,null,null,null,null,null,null,null,null,null,null,"October"]
[null,null,null,null,null,null,null,null,null,null,null,null,null,null,0,0,0,0,0,false,null,null,null,null,null,null,null,null,null,null,null,"November"]
[null,null,null,null,null,null,null,null,null,null,null,null,null,null,0,0,0,0,0,false,null,null,null,null,null,null,null,null,null,null,null,"December"]
[null,null,null,null,null,null,null,null,null,null,null,null,null,null,0,0,0,0,0,false]
[null,null,null,null,null,null,null,null,null,null,null,null,null,null,0,0,0,0,0,false]
[null,null,null,null,null,null,null,null,null,null,null,null,null,null,0,0,0,0,0,false]
[null,null,null,null,null,null,null,null,null,null,null,null,null,null,0,0,0,0,0,false]
[null,null,null,null,null,null,null,null,null,null,null,null,null,null,0,0,0,0,0,false]
[null,null,null,null,null,null,null,null,null,null,null,null,null,null,0,0,0,0,0,false]
[null,null,null,null,null,null,null,null,null,null,null,null,null,null,0,0,0,0,0,false]
[null,null,null,null,null,null,null,null,null,null,null,null,null,null,0,0,0,0,0,false]
[null,null,null,null,null,null,null,null,null,null,null,null,null,null,0,0,0,0,0,false]
[null,null,null,null,null,null,null,null,null,null,null,null,null,null,0,0,0,0,0,false]
[null,null,null,null,null,null,null,null,null,null,null,null,null,null,0,0,0,0,0,false]
[null,null,null,null,null,null,null,null,null,null,null,null,null,null,0,0,0,0,0,false]
[null,null,null,null,null,null,null,null,null,null,null,null,null,null,0,0,0,0,0,false]
[null,null,null,null,null,null,null,null,null,null,null,null,null,null,0,0,0,0,0,false]
[null,null,null,null,null,null,null,null,null,null,null,null,null,null,0,0,0,0,0,false]
[null,null,null,null,null,null,null,null,null,null,null,null,null,null,0,0,0,0,0,false]
[null,null,null,null,null,null,null,null,null,null,null,null,null,null,0,0,0,0,0,false]
[null,null,null,null,null,null,null,null,null,null,null,null,null,null,0,0,0,0,0,false]
[null,null,null,null,null,null,null,null,null,null,null,null,null,null,0,0,0,0,0,false]
[null,null,null,null,null,null,null,null,null,null,null,null,null,null,0,0,0,0,0,false]
[null,null,null,null,null,null,null,null,null,null,null,null,null,null,0,0,0,0,0,false]
[null,null,null,null,null,null,null,null,null,null,null,null,null,null,0,0,0,0,0,false]
[null,null,null,null,null,null,null,null,null,null,null,null,null,null,0,0,0,0,0,false]
[null,null,null,null,null,null,null,null,null,null,null,null,null,null,0,0,0,0,0,false]
[null,null,null,null,null,null,null,null,null,null,null,null,null,null,0,0,0,0,0,false]
[null,null,null,null,null,null,null,null,null,null,null,null,null,null,0,0,0,0,0,false]
[null,null,null,null,null,null,null,null,null,null,null,null,null,null,0,0,0,0,0,false]
[null,null,null,null,null,null,null,null,null,null,null,null,null,null,0,0,0,0,0,false]
[null,null,null,null,null,null,null,null,null,null,null,null,null,null,0,0,0,0,0,false]
[null,null,null,null,null,null,null,null,null,null,null,null,null,null,0,0,0,0,0,false]
[null,null,null,null,null,null,null,null,null,null,null,null,null,null,0,0,0,0,0,false]
[null,null,null,null,null,null,null,null,null,null,null,null,null,null,0,0,0,0,0,false]
[null,null,null,null,null,null,null,null,null,null,null,null,null,null,0,0,0,0,0,false]
[null,null,null,null,null,null,null,null,null,null,null,null,null,null,0,0,0,0,0,false]
[null,null,null,null,null,null,null,null,null,null,null,null,null,null,0,0,0,0,0,false]
[null,null,null,null,null,null,null,null,null,null,null,null,null,null,0,0,0,0,0,false]
[null,null,null,null,null,null,null,null,null,null,null,null,null,null,0,0,0,0,0,false]
[null,null,null,null,null,null,null,null,null,null,null,null,null,null,0,0,0,0,0,false]
[null,null,null,null,null,null,null,null,null,null,null,null,null,null,0,0,0,0,0,false]
[null,null,null,null,null,null,null,null,null,null,null,null,null,null,0,0,0,0,0,false]
[null,null,null,null,null,null,null,null,null,null,null,null,null,null,0,0,0,0,0,false]
[null,null,null,null,null,null,null,null,null,null,null,null,null,null,0,0,0,0,0,false]
[null,null,null,null,null,null,null,null,null,null,null,null,null,null,0,0,0,0,0,false]
[null,null,null,null,null,null,null,null,null,null,null,null,null,null,0,0,0,0,0,false]
[null,null,null,null,null,null,null,null,null,null,null,null,null,null,0,0,0,0,0,false]
[null,null,null,null,null,null,null,null,null,null,null,null,null,null,0,0,0,0,0,false]
[null,null,null,null,null,null,null,null,null,null,null,null,null,null,0,0,0,0,0,false]
[null,null,null,null,null,null,null,null,null,null,null,null,null,null,0,0,0,0,0,false]
[null,null,null,null,null,null,null,null,null,null,null,null,null,null,0,0,0,0,0,false]
[null,null,null,null,null,null,null,null,null,null,null,null,null,null,0,0,0,0,0,false]
[null,null,null,null,null,null,null,null,null,null,null,null,null,null,0,0,0,0,0,false]
[null,null,null,null,null,null,null,null,null,null,null,null,null,null,0,0,0,0,0,false]
[null,null,null,null,null,null,null,null,null,null,null,null,null,null,0,0,0,0,0,false]
[null,null,null,null,null,null,null,null,null,null,null,null,null,null,{"$f":"COUNTIF(B78,\">=01/01/2014\")","v":0},{"$f":"COUNTIF(D78:G78,\"*Yes*\")","v":0},{"$f":"COUNTIF(H78:J78,\"*Yes*\")","v":0},{"$f":"COUNTIF(C78,\">=01/01/2014\")","v":0},{"$f":"IF(C78>=1/1/2014,COUNTIF(K78,\"*Not documented*\"),0)","v":0},{"$f":"IF(C78>=1/1/2014,COUNTBLANK(K78))","v":false}]
[null,null,null,null,null,null,null,null,null,null,null,null,null,null,0,0,0,0,0,false]
[null,null,null,null,null,null,null,null,null,null,null,null,null,null,0,0,0,0,0,false]
[null,null,null,null,null,null,null,null,null,null,null,null,null,null,0,0,0,0,0,false]
[null,null,null,null,null,null,null,null,null,null,null,null,null,null,0,0,0,0,0,false]
[null,null,null,null,null,null,null,null,null,null,null,null,null,null,0,0,0,0,0,false]
[null,null,null,null,null,null,null,null,null,null,null,null,null,null,0,0,0,0,0,false]
[null,null,null,null,null,null,null,null,null,null,null,null,null,null,0,0,0,0,0,false]
[null,null,null,null,null,null,null,null,null,null,null,null,null,null,0,0,0,0,0,false]
[null,null,null,null,null,null,null,null,null,null,null,null,null,null,0,0,0,0,0,false]
[null,null,null,null,null,null,null,null,null,null,null,null,null,null,0,0,0,0,0,false]
[null,null,null,null,null,null,null,null,null,null,null,null,null,null,0,0,0,0,0,false]
[null,null,null,null,null,null,null,null,null,null,null,null,null,null,0,0,0,0,0,false]
[null,null,null,null,null,null,null,null,null,null,null,null,null,null,0,0,0,0,0,false]
[null,null,null,null,null,null,null,null,null,null,null,null,null,null,0,0,0,0,0,false]
[null,null,null,null,null,null,null,null,null,null,null,null,null,null,0,0,0,0,0,false]
[null,null,null,null,null,null,null,null,null,null,null,null,null,null,0,0,0,0,0,false]
[null,null,null,null,null,null,null,null,null,null,null,null,null,null,0,0,0,0,0,false]
[null,null,null,null,null,null,null,null,null,null,null,null,null,null,0,0,0,0,0,false]
[null,null,null,null,null,null,null,null,null,null,null,null,null,null,0,0,0,0,0,false]
[null,null,null,null,null,null,null,null,null,null,null,null,null,null,0,0,0,0,0,false]
[null,null,null,null,null,null,null,null,null,null,null,null,null,null,0,0,0,0,0,false]
[null,null,null,null,null,null,null,null,null,null,null,null,null,null,0,0,0,0,0,false]

{"sheet":"August","index":8,"n_rows":100,"n_cols":35,"rows_kept":100,"cut":false,"hidden":false,"merged":[[9,7,9,9],[10,3,10,5],[5,1,5,6],[6,1,6,6],[9,0,9,2],[9,3,9,6]]}
[]
[null,"Patients commencing AMBER","All day one interventions completed","Patient monitored daily","Reason for cessation documented"]
[null,{"$f":"SUM(O13:O105)","v":0},{"$f":"COUNTIF(P13:P105,\">=4\")/B3","v":{"$error":"#DIV/0!"}},{"$f":"COUNTIF(Q13:Q105,\">=3\")/B3","v":{"$error":"#DIV/0!"}},{"$f":"(SUM(R13:R100)-SUM(S13:T100))/SUM(R13:R100)","v":{"$error":"#DIV/0!"}},"   Step 2: Enter these totals on the \"Monthly_Data_For_Graphs\" page"]
[]
["Step 1: Enter the data for each patient on the form below"]
["Facility:   "]
["Ward or Clinical Unit:   "]
["Month:   ","March"]
[]
["Demographic information ",null,null,"Day 1 Interventions ",null,null,null,"Daily ACT monitoring ",null,null,"Cessation Details","Further comments, patient story or outcomes "]
[null,null,null,"within 4 hours of bundle initiation",null,null,"within 12 hours "]
["Primary diagnosis of patient","Date AMBER care bundle commenced ","Date AMBER care bundle ceased","medical plan document in progress notes","escalation decision documented - this includes both rapid response and clinical review "," resuscitation plan completed "," patient/carer discussion documented in medical record"," AMBER status confirmed or documented"," medical change documented"," talked to patient or carer re management plan","Reason for AMBER cessation",null,null,null,null,null,null,{"$f":"SUM(R13:R100)","v":0},{"$f":"SUM(S13:S100)","v":0},{"$f":"SUM(T13:T100)","v":0}]
[null,null,null,null,null,null,null,null,null,null,null,null,null,null,{"$f":"COUNTIF(B13,\">=01/01/2014\")","v":0},{"$f":"COUNTIF(D13:G13,\"*Yes*\")","v":0},{"$f":"COUNTIF(H13:J13,\"*Yes*\")","v":0},{"$f":"COUNTIF(C13,\">=01/01/2014\")","v":0},{"$f":"IF(C13>=1/1/2014,COUNTIF(K13,\"*Not documented*\"),0)","v":0},{"$f":"IF(C13>=1/1/2014,COUNTBLANK(K13))","v":false},null,null,null,null,null,null,null,null,null,null,null,"January","Not documented","Hospital ","Yes "]
[null,null,null,null,null,null,null,null,null,null,null,null,null,null,{"$f":"COUNTIF(B14,\">=01/01/2014\")","v":0},{"$f":"COUNTIF(D14:G14,\"*Yes*\")","v":0},{"$f":"COUNTIF(H14:J14,\"*Yes*\")","v":0},{"$f":"COUNTIF(C14,\">=01/01/2014\")","v":0},{"$f":"IF(C14>=1/1/2014,COUNTIF(K14,\"*Not documented*\"),0)","v":0},{"$f":"IF(C14>=1/1/2014,COUNTBLANK(K14))","v":false},null,null,null,null,null,null,null,null,null,null,null,"February","Clinical Improvement ","Patient's Home","No "]
[null,null,null,null,null,null,null,null,null,null,null,null,null,null,0,0,0,0,0,false,null,null,null,null,null,null,null,null,null,null,null,"March","Death ","Relative's home"]
[null,null,null,null,null,null,null,null,null,null,null,null,null,null,0,0,0,0,0,false,null,null,null,null,null,null,null,null,null,null,null,"April","Deterioration; end of life","Palliative Care Unit/Hospice"]
[null,null,null,null,null,null,null,null,null,null,null,null,null,null,0,0,0,0,0,false,null,null,null,null,null,null,null,null,null,null,null,"May","Discharge","Residential Aged Care facility"]
[null,null,null,null,null,null,null,null,null,null,null,null,null,null,0,0,0,0,0,false,null,null,null,null,null,null,null,null,null,null,null,"June","Moved to non - ACB ward","Other "]
[null,null,null,null,null,null,null,null,null,null,null,null,null,null,0,0,0,0,0,false,null,null,null,null,null,null,null,null,null,null,null,"July","Other"]
[null,null,null,null,null,null,null,null,null,null,null,null,null,null,0,0,0,0,0,false,null,null,null,null,null,null,null,null,null,null,null,"August"]
[null,null,null,null,null,null,null,null,null,null,null,null,null,null,0,0,0,0,0,false,null,null,null,null,null,null,null,null,null,null,null,"September"]
[null,null,null,null,null,null,null,null,null,null,null,null,null,null,0,0,0,0,0,false,null,null,null,null,null,null,null,null,null,null,null,"October"]
[null,null,null,null,null,null,null,null,null,null,null,null,null,null,0,0,0,0,0,false,null,null,null,null,null,null,null,null,null,null,null,"November"]
[null,null,null,null,null,null,null,null,null,null,null,null,null,null,0,0,0,0,0,false,null,null,null,null,null,null,null,null,null,null,null,"December"]
[null,null,null,null,null,null,null,null,null,null,null,null,null,null,0,0,0,0,0,false]
[null,null,null,null,null,null,null,null,null,null,null,null,null,null,0,0,0,0,0,false]
[null,null,null,null,null,null,null,null,null,null,null,null,null,null,0,0,0,0,0,false]
[null,null,null,null,null,null,null,null,null,null,null,null,null,null,0,0,0,0,0,false]
[null,null,null,null,null,null,null,null,null,null,null,null,null,null,0,0,0,0,0,false]
[null,null,null,null,null,null,null,null,null,null,null,null,null,null,0,0,0,0,0,false]
[null,null,null,null,null,null,null,null,null,null,null,null,null,null,0,0,0,0,0,false]
[null,null,null,null,null,null,null,null,null,null,null,null,null,null,0,0,0,0,0,false]
[null,null,null,null,null,null,null,null,null,null,null,null,null,null,0,0,0,0,0,false]
[null,null,null,null,null,null,null,null,null,null,null,null,null,null,0,0,0,0,0,false]
[null,null,null,null,null,null,null,null,null,null,null,null,null,null,0,0,0,0,0,false]
[null,null,null,null,null,null,null,null,null,null,null,null,null,null,0,0,0,0,0,false]
[null,null,null,null,null,null,null,null,null,null,null,null,null,null,0,0,0,0,0,false]
[null,null,null,null,null,null,null,null,null,null,null,null,null,null,0,0,0,0,0,false]
[null,null,null,null,null,null,null,null,null,null,null,null,null,null,0,0,0,0,0,false]
[null,null,null,null,null,null,null,null,null,null,null,null,null,null,0,0,0,0,0,false]
[null,null,null,null,null,null,null,null,null,null,null,null,null,null,0,0,0,0,0,false]
[null,null,null,null,null,null,null,null,null,null,null,null,null,null,0,0,0,0,0,false]
[null,null,null,null,null,null,null,null,null,null,null,null,null,null,0,0,0,0,0,false]
[null,null,null,null,null,null,null,null,null,null,null,null,null,null,0,0,0,0,0,false]
[null,null,null,null,null,null,null,null,null,null,null,null,null,null,0,0,0,0,0,false]
[null,null,null,null,null,null,null,null,null,null,null,null,null,null,0,0,0,0,0,false]
[null,null,null,null,null,null,null,null,null,null,null,null,null,null,0,0,0,0,0,false]
[null,null,null,null,null,null,null,null,null,null,null,null,null,null,0,0,0,0,0,false]
[null,null,null,null,null,null,null,null,null,null,null,null,null,null,0,0,0,0,0,false]
[null,null,null,null,null,null,null,null,null,null,null,null,null,null,0,0,0,0,0,false]
[null,null,null,null,null,null,null,null,null,null,null,null,null,null,0,0,0,0,0,false]
[null,null,null,null,null,null,null,null,null,null,null,null,null,null,0,0,0,0,0,false]
[null,null,null,null,null,null,null,null,null,null,null,null,null,null,0,0,0,0,0,false]
[null,null,null,null,null,null,null,null,null,null,null,null,null,null,0,0,0,0,0,false]
[null,null,null,null,null,null,null,null,null,null,null,null,null,null,0,0,0,0,0,false]
[null,null,null,null,null,null,null,null,null,null,null,null,null,null,0,0,0,0,0,false]
[null,null,null,null,null,null,null,null,null,null,null,null,null,null,0,0,0,0,0,false]
[null,null,null,null,null,null,null,null,null,null,null,null,null,null,0,0,0,0,0,false]
[null,null,null,null,null,null,null,null,null,null,null,null,null,null,0,0,0,0,0,false]
[null,null,null,null,null,null,null,null,null,null,null,null,null,null,0,0,0,0,0,false]
[null,null,null,null,null,null,null,null,null,null,null,null,null,null,0,0,0,0,0,false]
[null,null,null,null,null,null,null,null,null,null,null,null,null,null,0,0,0,0,0,false]
[null,null,null,null,null,null,null,null,null,null,null,null,null,null,0,0,0,0,0,false]
[null,null,null,null,null,null,null,null,null,null,null,null,null,null,0,0,0,0,0,false]
[null,null,null,null,null,null,null,null,null,null,null,null,null,null,0,0,0,0,0,false]
[null,null,null,null,null,null,null,null,null,null,null,null,null,null,0,0,0,0,0,false]
[null,null,null,null,null,null,null,null,null,null,null,null,null,null,0,0,0,0,0,false]
[null,null,null,null,null,null,null,null,null,null,null,null,null,null,0,0,0,0,0,false]
[null,null,null,null,null,null,null,null,null,null,null,null,null,null,0,0,0,0,0,false]
[null,null,null,null,null,null,null,null,null,null,null,null,null,null,0,0,0,0,0,false]
[null,null,null,null,null,null,null,null,null,null,null,null,null,null,0,0,0,0,0,false]
[null,null,null,null,null,null,null,null,null,null,null,null,null,null,0,0,0,0,0,false]
[null,null,null,null,null,null,null,null,null,null,null,null,null,null,0,0,0,0,0,false]
[null,null,null,null,null,null,null,null,null,null,null,null,null,null,0,0,0,0,0,false]
[null,null,null,null,null,null,null,null,null,null,null,null,null,null,0,0,0,0,0,false]
[null,null,null,null,null,null,null,null,null,null,null,null,null,null,0,0,0,0,0,false]
[null,null,null,null,null,null,null,null,null,null,null,null,null,null,0,0,0,0,0,false]
[null,null,null,null,null,null,null,null,null,null,null,null,null,null,{"$f":"COUNTIF(B78,\">=01/01/2014\")","v":0},{"$f":"COUNTIF(D78:G78,\"*Yes*\")","v":0},{"$f":"COUNTIF(H78:J78,\"*Yes*\")","v":0},{"$f":"COUNTIF(C78,\">=01/01/2014\")","v":0},{"$f":"IF(C78>=1/1/2014,COUNTIF(K78,\"*Not documented*\"),0)","v":0},{"$f":"IF(C78>=1/1/2014,COUNTBLANK(K78))","v":false}]
[null,null,null,null,null,null,null,null,null,null,null,null,null,null,0,0,0,0,0,false]
[null,null,null,null,null,null,null,null,null,null,null,null,null,null,0,0,0,0,0,false]
[null,null,null,null,null,null,null,null,null,null,null,null,null,null,0,0,0,0,0,false]
[null,null,null,null,null,null,null,null,null,null,null,null,null,null,0,0,0,0,0,false]
[null,null,null,null,null,null,null,null,null,null,null,null,null,null,0,0,0,0,0,false]
[null,null,null,null,null,null,null,null,null,null,null,null,null,null,0,0,0,0,0,false]
[null,null,null,null,null,null,null,null,null,null,null,null,null,null,0,0,0,0,0,false]
[null,null,null,null,null,null,null,null,null,null,null,null,null,null,0,0,0,0,0,false]
[null,null,null,null,null,null,null,null,null,null,null,null,null,null,0,0,0,0,0,false]
[null,null,null,null,null,null,null,null,null,null,null,null,null,null,0,0,0,0,0,false]
[null,null,null,null,null,null,null,null,null,null,null,null,null,null,0,0,0,0,0,false]
[null,null,null,null,null,null,null,null,null,null,null,null,null,null,0,0,0,0,0,false]
[null,null,null,null,null,null,null,null,null,null,null,null,null,null,0,0,0,0,0,false]
[null,null,null,null,null,null,null,null,null,null,null,null,null,null,0,0,0,0,0,false]
[null,null,null,null,null,null,null,null,null,null,null,null,null,null,0,0,0,0,0,false]
[null,null,null,null,null,null,null,null,null,null,null,null,null,null,0,0,0,0,0,false]
[null,null,null,null,null,null,null,null,null,null,null,null,null,null,0,0,0,0,0,false]
[null,null,null,null,null,null,null,null,null,null,null,null,null,null,0,0,0,0,0,false]
[null,null,null,null,null,null,null,null,null,null,null,null,null,null,0,0,0,0,0,false]
[null,null,null,null,null,null,null,null,null,null,null,null,null,null,0,0,0,0,0,false]
[null,null,null,null,null,null,null,null,null,null,null,null,null,null,0,0,0,0,0,false]
[null,null,null,null,null,null,null,null,null,null,null,null,null,null,0,0,0,0,0,false]

{"sheet":"Sept","index":9,"n_rows":100,"n_cols":35,"rows_kept":100,"cut":false,"hidden":false,"merged":[[9,7,9,9],[10,3,10,5],[5,1,5,6],[6,1,6,6],[9,0,9,2],[9,3,9,6]]}
[]
[null,"Patients commencing AMBER","All day one interventions completed","Patient monitored daily","Reason for cessation documented"]
[null,{"$f":"SUM(O13:O105)","v":0},{"$f":"COUNTIF(P13:P105,\">=4\")/B3","v":{"$error":"#DIV/0!"}},{"$f":"COUNTIF(Q13:Q105,\">=3\")/B3","v":{"$error":"#DIV/0!"}},{"$f":"(SUM(R13:R100)-SUM(S13:T100))/SUM(R13:R100)","v":{"$error":"#DIV/0!"}},"   Step 2: Enter these totals on the \"Monthly_Data_For_Graphs\" page"]
[]
["Step 1: Enter the data for each patient on the form below"]
["Facility:   "]
["Ward or Clinical Unit:   "]
["Month:   ","March"]
[]
["Demographic information ",null,null,"Day 1 Interventions ",null,null,null,"Daily ACT monitoring ",null,null,"Cessation Details","Further comments, patient story or outcomes "]
[null,null,null,"within 4 hours of bundle initiation",null,null,"within 12 hours "]
["Primary diagnosis of patient","Date AMBER care bundle commenced ","Date AMBER care bundle ceased","medical plan document in progress notes","escalation decision documented - this includes both rapid response and clinical review "," resuscitation plan completed "," patient/carer discussion documented in medical record"," AMBER status confirmed or documented"," medical change documented"," talked to patient or carer re management plan","Reason for AMBER cessation",null,null,null,null,null,null,{"$f":"SUM(R13:R100)","v":0},{"$f":"SUM(S13:S100)","v":0},{"$f":"SUM(T13:T100)","v":0}]
[null,null,null,null,null,null,null,null,null,null,null,null,null,null,{"$f":"COUNTIF(B13,\">=01/01/2014\")","v":0},{"$f":"COUNTIF(D13:G13,\"*Yes*\")","v":0},{"$f":"COUNTIF(H13:J13,\"*Yes*\")","v":0},{"$f":"COUNTIF(C13,\">=01/01/2014\")","v":0},{"$f":"IF(C13>=1/1/2014,COUNTIF(K13,\"*Not documented*\"),0)","v":0},{"$f":"IF(C13>=1/1/2014,COUNTBLANK(K13))","v":false},null,null,null,null,null,null,null,null,null,null,null,"January","Not documented","Hospital ","Yes "]
[null,null,null,null,null,null,null,null,null,null,null,null,null,null,{"$f":"COUNTIF(B14,\">=01/01/2014\")","v":0},{"$f":"COUNTIF(D14:G14,\"*Yes*\")","v":0},{"$f":"COUNTIF(H14:J14,\"*Yes*\")","v":0},{"$f":"COUNTIF(C14,\">=01/01/2014\")","v":0},{"$f":"IF(C14>=1/1/2014,COUNTIF(K14,\"*Not documented*\"),0)","v":0},{"$f":"IF(C14>=1/1/2014,COUNTBLANK(K14))","v":false},null,null,null,null,null,null,null,null,null,null,null,"February","Clinical Improvement ","Patient's Home","No "]
[null,null,null,null,null,null,null,null,null,null,null,null,null,null,0,0,0,0,0,false,null,null,null,null,null,null,null,null,null,null,null,"March","Death ","Relative's home"]
[null,null,null,null,null,null,null,null,null,null,null,null,null,null,0,0,0,0,0,false,null,null,null,null,null,null,null,null,null,null,null,"April","Deterioration; end of life","Palliative Care Unit/Hospice"]
[null,null,null,null,null,null,null,null,null,null,null,null,null,null,0,0,0,0,0,false,null,null,null,null,null,null,null,null,null,null,null,"May","Discharge","Residential Aged Care facility"]
[null,null,null,null,null,null,null,null,null,null,null,null,null,null,0,0,0,0,0,false,null,null,null,null,null,null,null,null,null,null,null,"June","Moved to non - ACB ward","Other "]
[null,null,null,null,null,null,null,null,null,null,null,null,null,null,0,0,0,0,0,false,null,null,null,null,null,null,null,null,null,null,null,"July","Other"]
[null,null,null,null,null,null,null,null,null,null,null,null,null,null,0,0,0,0,0,false,null,null,null,null,null,null,null,null,null,null,null,"August"]
[null,null,null,null,null,null,null,null,null,null,null,null,null,null,0,0,0,0,0,false,null,null,null,null,null,null,null,null,null,null,null,"September"]
[null,null,null,null,null,null,null,null,null,null,null,null,null,null,0,0,0,0,0,false,null,null,null,null,null,null,null,null,null,null,null,"October"]
[null,null,null,null,null,null,null,null,null,null,null,null,null,null,0,0,0,0,0,false,null,null,null,null,null,null,null,null,null,null,null,"November"]
[null,null,null,null,null,null,null,null,null,null,null,null,null,null,0,0,0,0,0,false,null,null,null,null,null,null,null,null,null,null,null,"December"]
[null,null,null,null,null,null,null,null,null,null,null,null,null,null,0,0,0,0,0,false]
[null,null,null,null,null,null,null,null,null,null,null,null,null,null,0,0,0,0,0,false]
[null,null,null,null,null,null,null,null,null,null,null,null,null,null,0,0,0,0,0,false]
[null,null,null,null,null,null,null,null,null,null,null,null,null,null,0,0,0,0,0,false]
[null,null,null,null,null,null,null,null,null,null,null,null,null,null,0,0,0,0,0,false]
[null,null,null,null,null,null,null,null,null,null,null,null,null,null,0,0,0,0,0,false]
[null,null,null,null,null,null,null,null,null,null,null,null,null,null,0,0,0,0,0,false]
[null,null,null,null,null,null,null,null,null,null,null,null,null,null,0,0,0,0,0,false]
[null,null,null,null,null,null,null,null,null,null,null,null,null,null,0,0,0,0,0,false]
[null,null,null,null,null,null,null,null,null,null,null,null,null,null,0,0,0,0,0,false]
[null,null,null,null,null,null,null,null,null,null,null,null,null,null,0,0,0,0,0,false]
[null,null,null,null,null,null,null,null,null,null,null,null,null,null,0,0,0,0,0,false]
[null,null,null,null,null,null,null,null,null,null,null,null,null,null,0,0,0,0,0,false]
[null,null,null,null,null,null,null,null,null,null,null,null,null,null,0,0,0,0,0,false]
[null,null,null,null,null,null,null,null,null,null,null,null,null,null,0,0,0,0,0,false]
[null,null,null,null,null,null,null,null,null,null,null,null,null,null,0,0,0,0,0,false]
[null,null,null,null,null,null,null,null,null,null,null,null,null,null,0,0,0,0,0,false]
[null,null,null,null,null,null,null,null,null,null,null,null,null,null,0,0,0,0,0,false]
[null,null,null,null,null,null,null,null,null,null,null,null,null,null,0,0,0,0,0,false]
[null,null,null,null,null,null,null,null,null,null,null,null,null,null,0,0,0,0,0,false]
[null,null,null,null,null,null,null,null,null,null,null,null,null,null,0,0,0,0,0,false]
[null,null,null,null,null,null,null,null,null,null,null,null,null,null,0,0,0,0,0,false]
[null,null,null,null,null,null,null,null,null,null,null,null,null,null,0,0,0,0,0,false]
[null,null,null,null,null,null,null,null,null,null,null,null,null,null,0,0,0,0,0,false]
[null,null,null,null,null,null,null,null,null,null,null,null,null,null,0,0,0,0,0,false]
[null,null,null,null,null,null,null,null,null,null,null,null,null,null,0,0,0,0,0,false]
[null,null,null,null,null,null,null,null,null,null,null,null,null,null,0,0,0,0,0,false]
[null,null,null,null,null,null,null,null,null,null,null,null,null,null,0,0,0,0,0,false]
[null,null,null,null,null,null,null,null,null,null,null,null,null,null,0,0,0,0,0,false]
[null,null,null,null,null,null,null,null,null,null,null,null,null,null,0,0,0,0,0,false]
[null,null,null,null,null,null,null,null,null,null,null,null,null,null,0,0,0,0,0,false]
[null,null,null,null,null,null,null,null,null,null,null,null,null,null,0,0,0,0,0,false]
[null,null,null,null,null,null,null,null,null,null,null,null,null,null,0,0,0,0,0,false]
[null,null,null,null,null,null,null,null,null,null,null,null,null,null,0,0,0,0,0,false]
[null,null,null,null,null,null,null,null,null,null,null,null,null,null,0,0,0,0,0,false]
[null,null,null,null,null,null,null,null,null,null,null,null,null,null,0,0,0,0,0,false]
[null,null,null,null,null,null,null,null,null,null,null,null,null,null,0,0,0,0,0,false]
[null,null,null,null,null,null,null,null,null,null,null,null,null,null,0,0,0,0,0,false]
[null,null,null,null,null,null,null,null,null,null,null,null,null,null,0,0,0,0,0,false]
[null,null,null,null,null,null,null,null,null,null,null,null,null,null,0,0,0,0,0,false]
[null,null,null,null,null,null,null,null,null,null,null,null,null,null,0,0,0,0,0,false]
[null,null,null,null,null,null,null,null,null,null,null,null,null,null,0,0,0,0,0,false]
[null,null,null,null,null,null,null,null,null,null,null,null,null,null,0,0,0,0,0,false]
[null,null,null,null,null,null,null,null,null,null,null,null,null,null,0,0,0,0,0,false]
[null,null,null,null,null,null,null,null,null,null,null,null,null,null,0,0,0,0,0,false]
[null,null,null,null,null,null,null,null,null,null,null,null,null,null,0,0,0,0,0,false]
[null,null,null,null,null,null,null,null,null,null,null,null,null,null,0,0,0,0,0,false]
[null,null,null,null,null,null,null,null,null,null,null,null,null,null,0,0,0,0,0,false]
[null,null,null,null,null,null,null,null,null,null,null,null,null,null,0,0,0,0,0,false]
[null,null,null,null,null,null,null,null,null,null,null,null,null,null,0,0,0,0,0,false]
[null,null,null,null,null,null,null,null,null,null,null,null,null,null,0,0,0,0,0,false]
[null,null,null,null,null,null,null,null,null,null,null,null,null,null,0,0,0,0,0,false]
[null,null,null,null,null,null,null,null,null,null,null,null,null,null,0,0,0,0,0,false]
[null,null,null,null,null,null,null,null,null,null,null,null,null,null,{"$f":"COUNTIF(B78,\">=01/01/2014\")","v":0},{"$f":"COUNTIF(D78:G78,\"*Yes*\")","v":0},{"$f":"COUNTIF(H78:J78,\"*Yes*\")","v":0},{"$f":"COUNTIF(C78,\">=01/01/2014\")","v":0},{"$f":"IF(C78>=1/1/2014,COUNTIF(K78,\"*Not documented*\"),0)","v":0},{"$f":"IF(C78>=1/1/2014,COUNTBLANK(K78))","v":false}]
[null,null,null,null,null,null,null,null,null,null,null,null,null,null,0,0,0,0,0,false]
[null,null,null,null,null,null,null,null,null,null,null,null,null,null,0,0,0,0,0,false]
[null,null,null,null,null,null,null,null,null,null,null,null,null,null,0,0,0,0,0,false]
[null,null,null,null,null,null,null,null,null,null,null,null,null,null,0,0,0,0,0,false]
[null,null,null,null,null,null,null,null,null,null,null,null,null,null,0,0,0,0,0,false]
[null,null,null,null,null,null,null,null,null,null,null,null,null,null,0,0,0,0,0,false]
[null,null,null,null,null,null,null,null,null,null,null,null,null,null,0,0,0,0,0,false]
[null,null,null,null,null,null,null,null,null,null,null,null,null,null,0,0,0,0,0,false]
[null,null,null,null,null,null,null,null,null,null,null,null,null,null,0,0,0,0,0,false]
[null,null,null,null,null,null,null,null,null,null,null,null,null,null,0,0,0,0,0,false]
[null,null,null,null,null,null,null,null,null,null,null,null,null,null,0,0,0,0,0,false]
[null,null,null,null,null,null,null,null,null,null,null,null,null,null,0,0,0,0,0,false]
[null,null,null,null,null,null,null,null,null,null,null,null,null,null,0,0,0,0,0,false]
[null,null,null,null,null,null,null,null,null,null,null,null,null,null,0,0,0,0,0,false]
[null,null,null,null,null,null,null,null,null,null,null,null,null,null,0,0,0,0,0,false]
[null,null,null,null,null,null,null,null,null,null,null,null,null,null,0,0,0,0,0,false]
[null,null,null,null,null,null,null,null,null,null,null,null,null,null,0,0,0,0,0,false]
[null,null,null,null,null,null,null,null,null,null,null,null,null,null,0,0,0,0,0,false]
[null,null,null,null,null,null,null,null,null,null,null,null,null,null,0,0,0,0,0,false]
[null,null,null,null,null,null,null,null,null,null,null,null,null,null,0,0,0,0,0,false]
[null,null,null,null,null,null,null,null,null,null,null,null,null,null,0,0,0,0,0,false]
[null,null,null,null,null,null,null,null,null,null,null,null,null,null,0,0,0,0,0,false]

{"sheet":"Oct","index":10,"n_rows":100,"n_cols":35,"rows_kept":100,"cut":false,"hidden":false,"merged":[[9,7,9,9],[10,3,10,5],[5,1,5,6],[6,1,6,6],[9,0,9,2],[9,3,9,6]]}
[]
[null,"Patients commencing AMBER","All day one interventions completed","Patient monitored daily","Reason for cessation documented"]
[null,{"$f":"SUM(O13:O105)","v":0},{"$f":"COUNTIF(P13:P105,\">=4\")/B3","v":{"$error":"#DIV/0!"}},{"$f":"COUNTIF(Q13:Q105,\">=3\")/B3","v":{"$error":"#DIV/0!"}},{"$f":"(SUM(R13:R100)-SUM(S13:T100))/SUM(R13:R100)","v":{"$error":"#DIV/0!"}},"   Step 2: Enter these totals on the \"Monthly_Data_For_Graphs\" page"]
[]
["Step 1: Enter the data for each patient on the form below"]
["Facility:   "]
["Ward or Clinical Unit:   "]
["Month:   ","March"]
[]
["Demographic information ",null,null,"Day 1 Interventions ",null,null,null,"Daily ACT monitoring ",null,null,"Cessation Details","Further comments, patient story or outcomes "]
[null,null,null,"within 4 hours of bundle initiation",null,null,"within 12 hours "]
["Primary diagnosis of patient","Date AMBER care bundle commenced ","Date AMBER care bundle ceased","medical plan document in progress notes","escalation decision documented - this includes both rapid response and clinical review "," resuscitation plan completed "," patient/carer discussion documented in medical record"," AMBER status confirmed or documented"," medical change documented"," talked to patient or carer re management plan","Reason for AMBER cessation",null,null,null,null,null,null,{"$f":"SUM(R13:R100)","v":0},{"$f":"SUM(S13:S100)","v":0},{"$f":"SUM(T13:T100)","v":0}]
[null,null,null,null,null,null,null,null,null,null,null,null,null,null,{"$f":"COUNTIF(B13,\">=01/01/2014\")","v":0},{"$f":"COUNTIF(D13:G13,\"*Yes*\")","v":0},{"$f":"COUNTIF(H13:J13,\"*Yes*\")","v":0},{"$f":"COUNTIF(C13,\">=01/01/2014\")","v":0},{"$f":"IF(C13>=1/1/2014,COUNTIF(K13,\"*Not documented*\"),0)","v":0},{"$f":"IF(C13>=1/1/2014,COUNTBLANK(K13))","v":false},null,null,null,null,null,null,null,null,null,null,null,"January","Not documented","Hospital ","Yes "]
[null,null,null,null,null,null,null,null,null,null,null,null,null,null,{"$f":"COUNTIF(B14,\">=01/01/2014\")","v":0},{"$f":"COUNTIF(D14:G14,\"*Yes*\")","v":0},{"$f":"COUNTIF(H14:J14,\"*Yes*\")","v":0},{"$f":"COUNTIF(C14,\">=01/01/2014\")","v":0},{"$f":"IF(C14>=1/1/2014,COUNTIF(K14,\"*Not documented*\"),0)","v":0},{"$f":"IF(C14>=1/1/2014,COUNTBLANK(K14))","v":false},null,null,null,null,null,null,null,null,null,null,null,"February","Clinical Improvement ","Patient's Home","No "]
[null,null,null,null,null,null,null,null,null,null,null,null,null,null,0,0,0,0,0,false,null,null,null,null,null,null,null,null,null,null,null,"March","Death ","Relative's home"]
[null,null,null,null,null,null,null,null,null,null,null,null,null,null,0,0,0,0,0,false,null,null,null,null,null,null,null,null,null,null,null,"April","Deterioration; end of life","Palliative Care Unit/Hospice"]
[null,null,null,null,null,null,null,null,null,null,null,null,null,null,0,0,0,0,0,false,null,null,null,null,null,null,null,null,null,null,null,"May","Discharge","Residential Aged Care facility"]
[null,null,null,null,null,null,null,null,null,null,null,null,null,null,0,0,0,0,0,false,null,null,null,null,null,null,null,null,null,null,null,"June","Moved to non - ACB ward","Other "]
[null,null,null,null,null,null,null,null,null,null,null,null,null,null,0,0,0,0,0,false,null,null,null,null,null,null,null,null,null,null,null,"July","Other"]
[null,null,null,null,null,null,null,null,null,null,null,null,null,null,0,0,0,0,0,false,null,null,null,null,null,null,null,null,null,null,null,"August"]
[null,null,null,null,null,null,null,null,null,null,null,null,null,null,0,0,0,0,0,false,null,null,null,null,null,null,null,null,null,null,null,"September"]
[null,null,null,null,null,null,null,null,null,null,null,null,null,null,0,0,0,0,0,false,null,null,null,null,null,null,null,null,null,null,null,"October"]
[null,null,null,null,null,null,null,null,null,null,null,null,null,null,0,0,0,0,0,false,null,null,null,null,null,null,null,null,null,null,null,"November"]
[null,null,null,null,null,null,null,null,null,null,null,null,null,null,0,0,0,0,0,false,null,null,null,null,null,null,null,null,null,null,null,"December"]
[null,null,null,null,null,null,null,null,null,null,null,null,null,null,0,0,0,0,0,false]
[null,null,null,null,null,null,null,null,null,null,null,null,null,null,0,0,0,0,0,false]
[null,null,null,null,null,null,null,null,null,null,null,null,null,null,0,0,0,0,0,false]
[null,null,null,null,null,null,null,null,null,null,null,null,null,null,0,0,0,0,0,false]
[null,null,null,null,null,null,null,null,null,null,null,null,null,null,0,0,0,0,0,false]
[null,null,null,null,null,null,null,null,null,null,null,null,null,null,0,0,0,0,0,false]
[null,null,null,null,null,null,null,null,null,null,null,null,null,null,0,0,0,0,0,false]
[null,null,null,null,null,null,null,null,null,null,null,null,null,null,0,0,0,0,0,false]
[null,null,null,null,null,null,null,null,null,null,null,null,null,null,0,0,0,0,0,false]
[null,null,null,null,null,null,null,null,null,null,null,null,null,null,0,0,0,0,0,false]
[null,null,null,null,null,null,null,null,null,null,null,null,null,null,0,0,0,0,0,false]
[null,null,null,null,null,null,null,null,null,null,null,null,null,null,0,0,0,0,0,false]
[null,null,null,null,null,null,null,null,null,null,null,null,null,null,0,0,0,0,0,false]
[null,null,null,null,null,null,null,null,null,null,null,null,null,null,0,0,0,0,0,false]
[null,null,null,null,null,null,null,null,null,null,null,null,null,null,0,0,0,0,0,false]
[null,null,null,null,null,null,null,null,null,null,null,null,null,null,0,0,0,0,0,false]
[null,null,null,null,null,null,null,null,null,null,null,null,null,null,0,0,0,0,0,false]
[null,null,null,null,null,null,null,null,null,null,null,null,null,null,0,0,0,0,0,false]
[null,null,null,null,null,null,null,null,null,null,null,null,null,null,0,0,0,0,0,false]
[null,null,null,null,null,null,null,null,null,null,null,null,null,null,0,0,0,0,0,false]
[null,null,null,null,null,null,null,null,null,null,null,null,null,null,0,0,0,0,0,false]
[null,null,null,null,null,null,null,null,null,null,null,null,null,null,0,0,0,0,0,false]
[null,null,null,null,null,null,null,null,null,null,null,null,null,null,0,0,0,0,0,false]
[null,null,null,null,null,null,null,null,null,null,null,null,null,null,0,0,0,0,0,false]
[null,null,null,null,null,null,null,null,null,null,null,null,null,null,0,0,0,0,0,false]
[null,null,null,null,null,null,null,null,null,null,null,null,null,null,0,0,0,0,0,false]
[null,null,null,null,null,null,null,null,null,null,null,null,null,null,0,0,0,0,0,false]
[null,null,null,null,null,null,null,null,null,null,null,null,null,null,0,0,0,0,0,false]
[null,null,null,null,null,null,null,null,null,null,null,null,null,null,0,0,0,0,0,false]
[null,null,null,null,null,null,null,null,null,null,null,null,null,null,0,0,0,0,0,false]
[null,null,null,null,null,null,null,null,null,null,null,null,null,null,0,0,0,0,0,false]
[null,null,null,null,null,null,null,null,null,null,null,null,null,null,0,0,0,0,0,false]
[null,null,null,null,null,null,null,null,null,null,null,null,null,null,0,0,0,0,0,false]
[null,null,null,null,null,null,null,null,null,null,null,null,null,null,0,0,0,0,0,false]
[null,null,null,null,null,null,null,null,null,null,null,null,null,null,0,0,0,0,0,false]
[null,null,null,null,null,null,null,null,null,null,null,null,null,null,0,0,0,0,0,false]
[null,null,null,null,null,null,null,null,null,null,null,null,null,null,0,0,0,0,0,false]
[null,null,null,null,null,null,null,null,null,null,null,null,null,null,0,0,0,0,0,false]
[null,null,null,null,null,null,null,null,null,null,null,null,null,null,0,0,0,0,0,false]
[null,null,null,null,null,null,null,null,null,null,null,null,null,null,0,0,0,0,0,false]
[null,null,null,null,null,null,null,null,null,null,null,null,null,null,0,0,0,0,0,false]
[null,null,null,null,null,null,null,null,null,null,null,null,null,null,0,0,0,0,0,false]
[null,null,null,null,null,null,null,null,null,null,null,null,null,null,0,0,0,0,0,false]
[null,null,null,null,null,null,null,null,null,null,null,null,null,null,0,0,0,0,0,false]
[null,null,null,null,null,null,null,null,null,null,null,null,null,null,0,0,0,0,0,false]
[null,null,null,null,null,null,null,null,null,null,null,null,null,null,0,0,0,0,0,false]
[null,null,null,null,null,null,null,null,null,null,null,null,null,null,0,0,0,0,0,false]
[null,null,null,null,null,null,null,null,null,null,null,null,null,null,0,0,0,0,0,false]
[null,null,null,null,null,null,null,null,null,null,null,null,null,null,0,0,0,0,0,false]
[null,null,null,null,null,null,null,null,null,null,null,null,null,null,0,0,0,0,0,false]
[null,null,null,null,null,null,null,null,null,null,null,null,null,null,0,0,0,0,0,false]
[null,null,null,null,null,null,null,null,null,null,null,null,null,null,0,0,0,0,0,false]
[null,null,null,null,null,null,null,null,null,null,null,null,null,null,0,0,0,0,0,false]
[null,null,null,null,null,null,null,null,null,null,null,null,null,null,{"$f":"COUNTIF(B78,\">=01/01/2014\")","v":0},{"$f":"COUNTIF(D78:G78,\"*Yes*\")","v":0},{"$f":"COUNTIF(H78:J78,\"*Yes*\")","v":0},{"$f":"COUNTIF(C78,\">=01/01/2014\")","v":0},{"$f":"IF(C78>=1/1/2014,COUNTIF(K78,\"*Not documented*\"),0)","v":0},{"$f":"IF(C78>=1/1/2014,COUNTBLANK(K78))","v":false}]
[null,null,null,null,null,null,null,null,null,null,null,null,null,null,0,0,0,0,0,false]
[null,null,null,null,null,null,null,null,null,null,null,null,null,null,0,0,0,0,0,false]
[null,null,null,null,null,null,null,null,null,null,null,null,null,null,0,0,0,0,0,false]
[null,null,null,null,null,null,null,null,null,null,null,null,null,null,0,0,0,0,0,false]
[null,null,null,null,null,null,null,null,null,null,null,null,null,null,0,0,0,0,0,false]
[null,null,null,null,null,null,null,null,null,null,null,null,null,null,0,0,0,0,0,false]
[null,null,null,null,null,null,null,null,null,null,null,null,null,null,0,0,0,0,0,false]
[null,null,null,null,null,null,null,null,null,null,null,null,null,null,0,0,0,0,0,false]
[null,null,null,null,null,null,null,null,null,null,null,null,null,null,0,0,0,0,0,false]
[null,null,null,null,null,null,null,null,null,null,null,null,null,null,0,0,0,0,0,false]
[null,null,null,null,null,null,null,null,null,null,null,null,null,null,0,0,0,0,0,false]
[null,null,null,null,null,null,null,null,null,null,null,null,null,null,0,0,0,0,0,false]
[null,null,null,null,null,null,null,null,null,null,null,null,null,null,0,0,0,0,0,false]
[null,null,null,null,null,null,null,null,null,null,null,null,null,null,0,0,0,0,0,false]
[null,null,null,null,null,null,null,null,null,null,null,null,null,null,0,0,0,0,0,false]
[null,null,null,null,null,null,null,null,null,null,null,null,null,null,0,0,0,0,0,false]
[null,null,null,null,null,null,null,null,null,null,null,null,null,null,0,0,0,0,0,false]
[null,null,null,null,null,null,null,null,null,null,null,null,null,null,0,0,0,0,0,false]
[null,null,null,null,null,null,null,null,null,null,null,null,null,null,0,0,0,0,0,false]
[null,null,null,null,null,null,null,null,null,null,null,null,null,null,0,0,0,0,0,false]
[null,null,null,null,null,null,null,null,null,null,null,null,null,null,0,0,0,0,0,false]
[null,null,null,null,null,null,null,null,null,null,null,null,null,null,0,0,0,0,0,false]

{"sheet":"Nov","index":11,"n_rows":100,"n_cols":35,"rows_kept":100,"cut":false,"hidden":false,"merged":[[9,7,9,9],[10,3,10,5],[5,1,5,6],[6,1,6,6],[9,0,9,2],[9,3,9,6]]}
[]
[null,"Patients commencing AMBER","All day one interventions completed","Patient monitored daily","Reason for cessation documented"]
[null,{"$f":"SUM(O13:O105)","v":0},{"$f":"COUNTIF(P13:P105,\">=4\")/B3","v":{"$error":"#DIV/0!"}},{"$f":"COUNTIF(Q13:Q105,\">=3\")/B3","v":{"$error":"#DIV/0!"}},{"$f":"(SUM(R13:R100)-SUM(S13:T100))/SUM(R13:R100)","v":{"$error":"#DIV/0!"}},"   Step 2: Enter these totals on the \"Monthly_Data_For_Graphs\" page"]
[]
["Step 1: Enter the data for each patient on the form below"]
["Facility:   "]
["Ward or Clinical Unit:   "]
["Month:   ","March"]
[]
["Demographic information ",null,null,"Day 1 Interventions ",null,null,null,"Daily ACT monitoring ",null,null,"Cessation Details","Further comments, patient story or outcomes "]
[null,null,null,"within 4 hours of bundle initiation",null,null,"within 12 hours "]
["Primary diagnosis of patient","Date AMBER care bundle commenced ","Date AMBER care bundle ceased","medical plan document in progress notes","escalation decision documented - this includes both rapid response and clinical review "," resuscitation plan completed "," patient/carer discussion documented in medical record"," AMBER status confirmed or documented"," medical change documented"," talked to patient or carer re management plan","Reason for AMBER cessation",null,null,null,null,null,null,{"$f":"SUM(R13:R100)","v":0},{"$f":"SUM(S13:S100)","v":0},{"$f":"SUM(T13:T100)","v":0}]
[null,null,null,null,null,null,null,null,null,null,null,null,null,null,{"$f":"COUNTIF(B13,\">=01/01/2014\")","v":0},{"$f":"COUNTIF(D13:G13,\"*Yes*\")","v":0},{"$f":"COUNTIF(H13:J13,\"*Yes*\")","v":0},{"$f":"COUNTIF(C13,\">=01/01/2014\")","v":0},{"$f":"IF(C13>=1/1/2014,COUNTIF(K13,\"*Not documented*\"),0)","v":0},{"$f":"IF(C13>=1/1/2014,COUNTBLANK(K13))","v":false},null,null,null,null,null,null,null,null,null,null,null,"January","Not documented","Hospital ","Yes "]
[null,null,null,null,null,null,null,null,null,null,null,null,null,null,{"$f":"COUNTIF(B14,\">=01/01/2014\")","v":0},{"$f":"COUNTIF(D14:G14,\"*Yes*\")","v":0},{"$f":"COUNTIF(H14:J14,\"*Yes*\")","v":0},{"$f":"COUNTIF(C14,\">=01/01/2014\")","v":0},{"$f":"IF(C14>=1/1/2014,COUNTIF(K14,\"*Not documented*\"),0)","v":0},{"$f":"IF(C14>=1/1/2014,COUNTBLANK(K14))","v":false},null,null,null,null,null,null,null,null,null,null,null,"February","Clinical Improvement ","Patient's Home","No "]
[null,null,null,null,null,null,null,null,null,null,null,null,null,null,0,0,0,0,0,false,null,null,null,null,null,null,null,null,null,null,null,"March","Death ","Relative's home"]
[null,null,null,null,null,null,null,null,null,null,null,null,null,null,0,0,0,0,0,false,null,null,null,null,null,null,null,null,null,null,null,"April","Deterioration; end of life","Palliative Care Unit/Hospice"]
[null,null,null,null,null,null,null,null,null,null,null,null,null,null,0,0,0,0,0,false,null,null,null,null,null,null,null,null,null,null,null,"May","Discharge","Residential Aged Care facility"]
[null,null,null,null,null,null,null,null,null,null,null,null,null,null,0,0,0,0,0,false,null,null,null,null,null,null,null,null,null,null,null,"June","Moved to non - ACB ward","Other "]
[null,null,null,null,null,null,null,null,null,null,null,null,null,null,0,0,0,0,0,false,null,null,null,null,null,null,null,null,null,null,null,"July","Other"]
[null,null,null,null,null,null,null,null,null,null,null,null,null,null,0,0,0,0,0,false,null,null,null,null,null,null,null,null,null,null,null,"August"]
[null,null,null,null,null,null,null,null,null,null,null,null,null,null,0,0,0,0,0,false,null,null,null,null,null,null,null,null,null,null,null,"September"]
[null,null,null,null,null,null,null,null,null,null,null,null,null,null,0,0,0,0,0,false,null,null,null,null,null,null,null,null,null,null,null,"October"]
[null,null,null,null,null,null,null,null,null,null,null,null,null,null,0,0,0,0,0,false,null,null,null,null,null,null,null,null,null,null,null,"November"]
[null,null,null,null,null,null,null,null,null,null,null,null,null,null,0,0,0,0,0,false,null,null,null,null,null,null,null,null,null,null,null,"December"]
[null,null,null,null,null,null,null,null,null,null,null,null,null,null,0,0,0,0,0,false]
[null,null,null,null,null,null,null,null,null,null,null,null,null,null,0,0,0,0,0,false]
[null,null,null,null,null,null,null,null,null,null,null,null,null,null,0,0,0,0,0,false]
[null,null,null,null,null,null,null,null,null,null,null,null,null,null,0,0,0,0,0,false]
[null,null,null,null,null,null,null,null,null,null,null,null,null,null,0,0,0,0,0,false]
[null,null,null,null,null,null,null,null,null,null,null,null,null,null,0,0,0,0,0,false]
[null,null,null,null,null,null,null,null,null,null,null,null,null,null,0,0,0,0,0,false]
[null,null,null,null,null,null,null,null,null,null,null,null,null,null,0,0,0,0,0,false]
[null,null,null,null,null,null,null,null,null,null,null,null,null,null,0,0,0,0,0,false]
[null,null,null,null,null,null,null,null,null,null,null,null,null,null,0,0,0,0,0,false]
[null,null,null,null,null,null,null,null,null,null,null,null,null,null,0,0,0,0,0,false]
[null,null,null,null,null,null,null,null,null,null,null,null,null,null,0,0,0,0,0,false]
[null,null,null,null,null,null,null,null,null,null,null,null,null,null,0,0,0,0,0,false]
[null,null,null,null,null,null,null,null,null,null,null,null,null,null,0,0,0,0,0,false]
[null,null,null,null,null,null,null,null,null,null,null,null,null,null,0,0,0,0,0,false]
[null,null,null,null,null,null,null,null,null,null,null,null,null,null,0,0,0,0,0,false]
[null,null,null,null,null,null,null,null,null,null,null,null,null,null,0,0,0,0,0,false]
[null,null,null,null,null,null,null,null,null,null,null,null,null,null,0,0,0,0,0,false]
[null,null,null,null,null,null,null,null,null,null,null,null,null,null,0,0,0,0,0,false]
[null,null,null,null,null,null,null,null,null,null,null,null,null,null,0,0,0,0,0,false]
[null,null,null,null,null,null,null,null,null,null,null,null,null,null,0,0,0,0,0,false]
[null,null,null,null,null,null,null,null,null,null,null,null,null,null,0,0,0,0,0,false]
[null,null,null,null,null,null,null,null,null,null,null,null,null,null,0,0,0,0,0,false]
[null,null,null,null,null,null,null,null,null,null,null,null,null,null,0,0,0,0,0,false]
[null,null,null,null,null,null,null,null,null,null,null,null,null,null,0,0,0,0,0,false]
[null,null,null,null,null,null,null,null,null,null,null,null,null,null,0,0,0,0,0,false]
[null,null,null,null,null,null,null,null,null,null,null,null,null,null,0,0,0,0,0,false]
[null,null,null,null,null,null,null,null,null,null,null,null,null,null,0,0,0,0,0,false]
[null,null,null,null,null,null,null,null,null,null,null,null,null,null,0,0,0,0,0,false]
[null,null,null,null,null,null,null,null,null,null,null,null,null,null,0,0,0,0,0,false]
[null,null,null,null,null,null,null,null,null,null,null,null,null,null,0,0,0,0,0,false]
[null,null,null,null,null,null,null,null,null,null,null,null,null,null,0,0,0,0,0,false]
[null,null,null,null,null,null,null,null,null,null,null,null,null,null,0,0,0,0,0,false]
[null,null,null,null,null,null,null,null,null,null,null,null,null,null,0,0,0,0,0,false]
[null,null,null,null,null,null,null,null,null,null,null,null,null,null,0,0,0,0,0,false]
[null,null,null,null,null,null,null,null,null,null,null,null,null,null,0,0,0,0,0,false]
[null,null,null,null,null,null,null,null,null,null,null,null,null,null,0,0,0,0,0,false]
[null,null,null,null,null,null,null,null,null,null,null,null,null,null,0,0,0,0,0,false]
[null,null,null,null,null,null,null,null,null,null,null,null,null,null,0,0,0,0,0,false]
[null,null,null,null,null,null,null,null,null,null,null,null,null,null,0,0,0,0,0,false]
[null,null,null,null,null,null,null,null,null,null,null,null,null,null,0,0,0,0,0,false]
[null,null,null,null,null,null,null,null,null,null,null,null,null,null,0,0,0,0,0,false]
[null,null,null,null,null,null,null,null,null,null,null,null,null,null,0,0,0,0,0,false]
[null,null,null,null,null,null,null,null,null,null,null,null,null,null,0,0,0,0,0,false]
[null,null,null,null,null,null,null,null,null,null,null,null,null,null,0,0,0,0,0,false]
[null,null,null,null,null,null,null,null,null,null,null,null,null,null,0,0,0,0,0,false]
[null,null,null,null,null,null,null,null,null,null,null,null,null,null,0,0,0,0,0,false]
[null,null,null,null,null,null,null,null,null,null,null,null,null,null,0,0,0,0,0,false]
[null,null,null,null,null,null,null,null,null,null,null,null,null,null,0,0,0,0,0,false]
[null,null,null,null,null,null,null,null,null,null,null,null,null,null,0,0,0,0,0,false]
[null,null,null,null,null,null,null,null,null,null,null,null,null,null,0,0,0,0,0,false]
[null,null,null,null,null,null,null,null,null,null,null,null,null,null,0,0,0,0,0,false]
[null,null,null,null,null,null,null,null,null,null,null,null,null,null,0,0,0,0,0,false]
[null,null,null,null,null,null,null,null,null,null,null,null,null,null,{"$f":"COUNTIF(B78,\">=01/01/2014\")","v":0},{"$f":"COUNTIF(D78:G78,\"*Yes*\")","v":0},{"$f":"COUNTIF(H78:J78,\"*Yes*\")","v":0},{"$f":"COUNTIF(C78,\">=01/01/2014\")","v":0},{"$f":"IF(C78>=1/1/2014,COUNTIF(K78,\"*Not documented*\"),0)","v":0},{"$f":"IF(C78>=1/1/2014,COUNTBLANK(K78))","v":false}]
[null,null,null,null,null,null,null,null,null,null,null,null,null,null,0,0,0,0,0,false]
[null,null,null,null,null,null,null,null,null,null,null,null,null,null,0,0,0,0,0,false]
[null,null,null,null,null,null,null,null,null,null,null,null,null,null,0,0,0,0,0,false]
[null,null,null,null,null,null,null,null,null,null,null,null,null,null,0,0,0,0,0,false]
[null,null,null,null,null,null,null,null,null,null,null,null,null,null,0,0,0,0,0,false]
[null,null,null,null,null,null,null,null,null,null,null,null,null,null,0,0,0,0,0,false]
[null,null,null,null,null,null,null,null,null,null,null,null,null,null,0,0,0,0,0,false]
[null,null,null,null,null,null,null,null,null,null,null,null,null,null,0,0,0,0,0,false]
[null,null,null,null,null,null,null,null,null,null,null,null,null,null,0,0,0,0,0,false]
[null,null,null,null,null,null,null,null,null,null,null,null,null,null,0,0,0,0,0,false]
[null,null,null,null,null,null,null,null,null,null,null,null,null,null,0,0,0,0,0,false]
[null,null,null,null,null,null,null,null,null,null,null,null,null,null,0,0,0,0,0,false]
[null,null,null,null,null,null,null,null,null,null,null,null,null,null,0,0,0,0,0,false]
[null,null,null,null,null,null,null,null,null,null,null,null,null,null,0,0,0,0,0,false]
[null,null,null,null,null,null,null,null,null,null,null,null,null,null,0,0,0,0,0,false]
[null,null,null,null,null,null,null,null,null,null,null,null,null,null,0,0,0,0,0,false]
[null,null,null,null,null,null,null,null,null,null,null,null,null,null,0,0,0,0,0,false]
[null,null,null,null,null,null,null,null,null,null,null,null,null,null,0,0,0,0,0,false]
[null,null,null,null,null,null,null,null,null,null,null,null,null,null,0,0,0,0,0,false]
[null,null,null,null,null,null,null,null,null,null,null,null,null,null,0,0,0,0,0,false]
[null,null,null,null,null,null,null,null,null,null,null,null,null,null,0,0,0,0,0,false]
[null,null,null,null,null,null,null,null,null,null,null,null,null,null,0,0,0,0,0,false]

{"sheet":"Dec","index":12,"n_rows":100,"n_cols":35,"rows_kept":100,"cut":false,"hidden":false,"merged":[[9,7,9,9],[9,0,9,2],[5,1,5,6],[6,1,6,6],[10,3,10,5],[9,3,9,6]]}
[]
[null,"Patients commencing AMBER","All day one interventions completed","Patient monitored daily","Reason for cessation documented"]
[null,{"$f":"SUM(O13:O105)","v":0},{"$f":"COUNTIF(P13:P105,\">=4\")/B3","v":{"$error":"#DIV/0!"}},{"$f":"COUNTIF(Q13:Q105,\">=3\")/B3","v":{"$error":"#DIV/0!"}},{"$f":"(SUM(R13:R100)-SUM(S13:T100))/SUM(R13:R100)","v":{"$error":"#DIV/0!"}},"   Step 2: Enter these totals on the \"Monthly_Data_For_Graphs\" page"]
[]
["Step 1: Enter the data for each patient on the form below"]
["Facility:   "]
["Ward or Clinical Unit:   "]
["Month:   ","March"]
[]
["Demographic information ",null,null,"Day 1 Interventions ",null,null,null,"Daily ACT monitoring ",null,null,"Cessation Details","Further comments, patient story or outcomes "]
[null,null,null,"within 4 hours of bundle initiation",null,null,"within 12 hours "]
["Primary diagnosis of patient","Date AMBER care bundle commenced ","Date AMBER care bundle ceased","medical plan document in progress notes","escalation decision documented - this includes both rapid response and clinical review "," resuscitation plan completed "," patient/carer discussion documented in medical record"," AMBER status confirmed or documented"," medical change documented"," talked to patient or carer re management plan","Reason for AMBER cessation",null,null,null,null,null,null,{"$f":"SUM(R13:R100)","v":0},{"$f":"SUM(S13:S100)","v":0},{"$f":"SUM(T13:T100)","v":0}]
[null,null,null,null,null,null,null,null,null,null,null,null,null,null,{"$f":"COUNTIF(B13,\">=01/01/2014\")","v":0},{"$f":"COUNTIF(D13:G13,\"*Yes*\")","v":0},{"$f":"COUNTIF(H13:J13,\"*Yes*\")","v":0},{"$f":"COUNTIF(C13,\">=01/01/2014\")","v":0},{"$f":"IF(C13>=1/1/2014,COUNTIF(K13,\"*Not documented*\"),0)","v":0},{"$f":"IF(C13>=1/1/2014,COUNTBLANK(K13))","v":false},null,null,null,null,null,null,null,null,null,null,null,"January","Not documented","Hospital ","Yes "]
[null,null,null,null,null,null,null,null,null,null,null,null,null,null,{"$f":"COUNTIF(B14,\">=01/01/2014\")","v":0},{"$f":"COUNTIF(D14:G14,\"*Yes*\")","v":0},{"$f":"COUNTIF(H14:J14,\"*Yes*\")","v":0},{"$f":"COUNTIF(C14,\">=01/01/2014\")","v":0},{"$f":"IF(C14>=1/1/2014,COUNTIF(K14,\"*Not documented*\"),0)","v":0},{"$f":"IF(C14>=1/1/2014,COUNTBLANK(K14))","v":false},null,null,null,null,null,null,null,null,null,null,null,"February","Clinical Improvement ","Patient's Home","No "]
[null,null,null,null,null,null,null,null,null,null,null,null,null,null,0,0,0,0,0,false,null,null,null,null,null,null,null,null,null,null,null,"March","Death ","Relative's home"]
[null,null,null,null,null,null,null,null,null,null,null,null,null,null,0,0,0,0,0,false,null,null,null,null,null,null,null,null,null,null,null,"April","Deterioration; end of life","Palliative Care Unit/Hospice"]
[null,null,null,null,null,null,null,null,null,null,null,null,null,null,0,0,0,0,0,false,null,null,null,null,null,null,null,null,null,null,null,"May","Discharge","Residential Aged Care facility"]
[null,null,null,null,null,null,null,null,null,null,null,null,null,null,0,0,0,0,0,false,null,null,null,null,null,null,null,null,null,null,null,"June","Moved to non - ACB ward","Other "]
[null,null,null,null,null,null,null,null,null,null,null,null,null,null,0,0,0,0,0,false,null,null,null,null,null,null,null,null,null,null,null,"July","Other"]
[null,null,null,null,null,null,null,null,null,null,null,null,null,null,0,0,0,0,0,false,null,null,null,null,null,null,null,null,null,null,null,"August"]
[null,null,null,null,null,null,null,null,null,null,null,null,null,null,0,0,0,0,0,false,null,null,null,null,null,null,null,null,null,null,null,"September"]
[null,null,null,null,null,null,null,null,null,null,null,null,null,null,0,0,0,0,0,false,null,null,null,null,null,null,null,null,null,null,null,"October"]
[null,null,null,null,null,null,null,null,null,null,null,null,null,null,0,0,0,0,0,false,null,null,null,null,null,null,null,null,null,null,null,"November"]
[null,null,null,null,null,null,null,null,null,null,null,null,null,null,0,0,0,0,0,false,null,null,null,null,null,null,null,null,null,null,null,"December"]
[null,null,null,null,null,null,null,null,null,null,null,null,null,null,0,0,0,0,0,false]
[null,null,null,null,null,null,null,null,null,null,null,null,null,null,0,0,0,0,0,false]
[null,null,null,null,null,null,null,null,null,null,null,null,null,null,0,0,0,0,0,false]
[null,null,null,null,null,null,null,null,null,null,null,null,null,null,0,0,0,0,0,false]
[null,null,null,null,null,null,null,null,null,null,null,null,null,null,0,0,0,0,0,false]
[null,null,null,null,null,null,null,null,null,null,null,null,null,null,0,0,0,0,0,false]
[null,null,null,null,null,null,null,null,null,null,null,null,null,null,0,0,0,0,0,false]
[null,null,null,null,null,null,null,null,null,null,null,null,null,null,0,0,0,0,0,false]
[null,null,null,null,null,null,null,null,null,null,null,null,null,null,0,0,0,0,0,false]
[null,null,null,null,null,null,null,null,null,null,null,null,null,null,0,0,0,0,0,false]
[null,null,null,null,null,null,null,null,null,null,null,null,null,null,0,0,0,0,0,false]
[null,null,null,null,null,null,null,null,null,null,null,null,null,null,0,0,0,0,0,false]
[null,null,null,null,null,null,null,null,null,null,null,null,null,null,0,0,0,0,0,false]
[null,null,null,null,null,null,null,null,null,null,null,null,null,null,0,0,0,0,0,false]
[null,null,null,null,null,null,null,null,null,null,null,null,null,null,0,0,0,0,0,false]
[null,null,null,null,null,null,null,null,null,null,null,null,null,null,0,0,0,0,0,false]
[null,null,null,null,null,null,null,null,null,null,null,null,null,null,0,0,0,0,0,false]
[null,null,null,null,null,null,null,null,null,null,null,null,null,null,0,0,0,0,0,false]
[null,null,null,null,null,null,null,null,null,null,null,null,null,null,0,0,0,0,0,false]
[null,null,null,null,null,null,null,null,null,null,null,null,null,null,0,0,0,0,0,false]
[null,null,null,null,null,null,null,null,null,null,null,null,null,null,0,0,0,0,0,false]
[null,null,null,null,null,null,null,null,null,null,null,null,null,null,0,0,0,0,0,false]
[null,null,null,null,null,null,null,null,null,null,null,null,null,null,0,0,0,0,0,false]
[null,null,null,null,null,null,null,null,null,null,null,null,null,null,0,0,0,0,0,false]
[null,null,null,null,null,null,null,null,null,null,null,null,null,null,0,0,0,0,0,false]
[null,null,null,null,null,null,null,null,null,null,null,null,null,null,0,0,0,0,0,false]
[null,null,null,null,null,null,null,null,null,null,null,null,null,null,0,0,0,0,0,false]
[null,null,null,null,null,null,null,null,null,null,null,null,null,null,0,0,0,0,0,false]
[null,null,null,null,null,null,null,null,null,null,null,null,null,null,0,0,0,0,0,false]
[null,null,null,null,null,null,null,null,null,null,null,null,null,null,0,0,0,0,0,false]
[null,null,null,null,null,null,null,null,null,null,null,null,null,null,0,0,0,0,0,false]
[null,null,null,null,null,null,null,null,null,null,null,null,null,null,0,0,0,0,0,false]
[null,null,null,null,null,null,null,null,null,null,null,null,null,null,0,0,0,0,0,false]
[null,null,null,null,null,null,null,null,null,null,null,null,null,null,0,0,0,0,0,false]
[null,null,null,null,null,null,null,null,null,null,null,null,null,null,0,0,0,0,0,false]
[null,null,null,null,null,null,null,null,null,null,null,null,null,null,0,0,0,0,0,false]
[null,null,null,null,null,null,null,null,null,null,null,null,null,null,0,0,0,0,0,false]
[null,null,null,null,null,null,null,null,null,null,null,null,null,null,0,0,0,0,0,false]
[null,null,null,null,null,null,null,null,null,null,null,null,null,null,0,0,0,0,0,false]
[null,null,null,null,null,null,null,null,null,null,null,null,null,null,0,0,0,0,0,false]
[null,null,null,null,null,null,null,null,null,null,null,null,null,null,0,0,0,0,0,false]
[null,null,null,null,null,null,null,null,null,null,null,null,null,null,0,0,0,0,0,false]
[null,null,null,null,null,null,null,null,null,null,null,null,null,null,0,0,0,0,0,false]
[null,null,null,null,null,null,null,null,null,null,null,null,null,null,0,0,0,0,0,false]
[null,null,null,null,null,null,null,null,null,null,null,null,null,null,0,0,0,0,0,false]
[null,null,null,null,null,null,null,null,null,null,null,null,null,null,0,0,0,0,0,false]
[null,null,null,null,null,null,null,null,null,null,null,null,null,null,0,0,0,0,0,false]
[null,null,null,null,null,null,null,null,null,null,null,null,null,null,0,0,0,0,0,false]
[null,null,null,null,null,null,null,null,null,null,null,null,null,null,0,0,0,0,0,false]
[null,null,null,null,null,null,null,null,null,null,null,null,null,null,0,0,0,0,0,false]
[null,null,null,null,null,null,null,null,null,null,null,null,null,null,0,0,0,0,0,false]
[null,null,null,null,null,null,null,null,null,null,null,null,null,null,0,0,0,0,0,false]
[null,null,null,null,null,null,null,null,null,null,null,null,null,null,0,0,0,0,0,false]
[null,null,null,null,null,null,null,null,null,null,null,null,null,null,{"$f":"COUNTIF(B78,\">=01/01/2014\")","v":0},{"$f":"COUNTIF(D78:G78,\"*Yes*\")","v":0},{"$f":"COUNTIF(H78:J78,\"*Yes*\")","v":0},{"$f":"COUNTIF(C78,\">=01/01/2014\")","v":0},{"$f":"IF(C78>=1/1/2014,COUNTIF(K78,\"*Not documented*\"),0)","v":0},{"$f":"IF(C78>=1/1/2014,COUNTBLANK(K78))","v":false}]
[null,null,null,null,null,null,null,null,null,null,null,null,null,null,0,0,0,0,0,false]
[null,null,null,null,null,null,null,null,null,null,null,null,null,null,0,0,0,0,0,false]
[null,null,null,null,null,null,null,null,null,null,null,null,null,null,0,0,0,0,0,false]
[null,null,null,null,null,null,null,null,null,null,null,null,null,null,0,0,0,0,0,false]
[null,null,null,null,null,null,null,null,null,null,null,null,null,null,0,0,0,0,0,false]
[null,null,null,null,null,null,null,null,null,null,null,null,null,null,0,0,0,0,0,false]
[null,null,null,null,null,null,null,null,null,null,null,null,null,null,0,0,0,0,0,false]
[null,null,null,null,null,null,null,null,null,null,null,null,null,null,0,0,0,0,0,false]
[null,null,null,null,null,null,null,null,null,null,null,null,null,null,0,0,0,0,0,false]
[null,null,null,null,null,null,null,null,null,null,null,null,null,null,0,0,0,0,0,false]
[null,null,null,null,null,null,null,null,null,null,null,null,null,null,0,0,0,0,0,false]
[null,null,null,null,null,null,null,null,null,null,null,null,null,null,0,0,0,0,0,false]
[null,null,null,null,null,null,null,null,null,null,null,null,null,null,0,0,0,0,0,false]
[null,null,null,null,null,null,null,null,null,null,null,null,null,null,0,0,0,0,0,false]
[null,null,null,null,null,null,null,null,null,null,null,null,null,null,0,0,0,0,0,false]
[null,null,null,null,null,null,null,null,null,null,null,null,null,null,0,0,0,0,0,false]
[null,null,null,null,null,null,null,null,null,null,null,null,null,null,0,0,0,0,0,false]
[null,null,null,null,null,null,null,null,null,null,null,null,null,null,0,0,0,0,0,false]
[null,null,null,null,null,null,null,null,null,null,null,null,null,null,0,0,0,0,0,false]
[null,null,null,null,null,null,null,null,null,null,null,null,null,null,0,0,0,0,0,false]
[null,null,null,null,null,null,null,null,null,null,null,null,null,null,0,0,0,0,0,false]
[null,null,null,null,null,null,null,null,null,null,null,null,null,null,0,0,0,0,0,false]

{"sheet":"Monthly_Data_For_Graphs","index":13,"n_rows":13,"n_cols":9,"rows_kept":13,"cut":false,"hidden":false,"merged":[]}
["Facility","Ward","Month","Patients commencing AMBER","All day one interventions completed","Patient monitored daily","Reason for cessation documented","Publish"]
[null,null,"2016-01-01",null,null,null,null,null,"Step 3: Enter the totals from the yellow cells on the \"Monthly_Data_Collection\" page on a new row"]
[null,null,"2016-02-01"]
[null,null,"2016-03-01",null,null,null,null,null,"Step 4: Go to the \"Monthly_Graphs page and print a copy for your reporting"]
[null,null,"2016-04-01"]
[null,null,"2016-05-01"]
[null,null,"2016-06-01"]
[null,null,"2016-07-01"]
[null,null,"2016-08-01"]
[null,null,"2016-09-01"]
[null,null,"2016-10-01"]
[null,null,"2016-11-01"]
[null,null,"2016-12-01"]

{"sheet":"Monthly_Graphs","index":14,"n_rows":18,"n_cols":58,"rows_kept":18,"cut":false,"hidden":false,"merged":[]}
[]
[null,null,null,null,null,"Monthly Ward Report for:"]
[]
[]
[null,null,null,null,null,null,null,null,null,null,null,null,null,null,null,null,null,null,null,null,null,null,null,null,null,null,null,null,null,null,null,null,null,null,null,"Row Labels","Sum of Patients commencing AMBER",null,null,null,null,null,"Row Labels","Sum of All day one interventions completed",null,null,null,null,null,"Row Labels","Sum of Patient monitored daily",null,null,null,null,null,"Row Labels","Sum of Reason for cessation documented"]
[null,null,null,null,null,null,null,null,null,null,null,null,null,null,null,null,null,null,null,null,null,null,null,null,null,null,null,null,null,null,null,null,null,null,null,"2016-01-01",null,null,null,null,null,null,"2016-01-01",null,null,null,null,null,null,"2016-01-01",null,null,null,null,null,null,"2016-01-01"]
[null,null,null,null,null,null,null,null,null,null,null,null,null,null,null,null,null,null,null,null,null,null,null,null,null,null,null,null,null,null,null,null,null,null,null,"2016-02-01",null,null,null,null,null,null,"2016-02-01",null,null,null,null,null,null,"2016-02-01",null,null,null,null,null,null,"2016-02-01"]
[null,null,null,null,null,null,null,null,null,null,null,null,null,null,null,null,null,null,null,null,null,null,null,null,null,null,null,null,null,null,null,null,null,null,null,"2016-03-01",null,null,null,null,null,null,"2016-03-01",null,null,null,null,null,null,"2016-03-01",null,null,null,null,null,null,"2016-03-01"]
[null,null,null,null,null,null,null,null,null,null,null,null,null,null,null,null,null,null,null,null,null,null,null,null,null,null,null,null,null,null,null,null,null,null,null,"2016-04-01",null,null,null,null,null,null,"2016-04-01",null,null,null,null,null,null,"2016-04-01",null,null,null,null,null,null,"2016-04-01"]
[null,null,null,null,null,null,null,null,null,null,null,null,null,null,null,null,null,null,null,null,null,null,null,null,null,null,null,null,null,null,null,null,null,null,null,"2016-05-01",null,null,null,null,null,null,"2016-05-01",null,null,null,null,null,null,"2016-05-01",null,null,null,null,null,null,"2016-05-01"]
[null,null,null,null,null,null,null,null,null,null,null,null,null,null,null,null,null,null,null,null,null,null,null,null,null,null,null,null,null,null,null,null,null,null,null,"2016-06-01",null,null,null,null,null,null,"2016-06-01",null,null,null,null,null,null,"2016-06-01",null,null,null,null,null,null,"2016-06-01"]
[null,null,null,null,null,null,null,null,null,null,null,null,null,null,null,null,null,null,null,null,null,null,null,null,null,null,null,null,null,null,null,null,null,null,null,"2016-07-01",null,null,null,null,null,null,"2016-07-01",null,null,null,null,null,null,"2016-07-01",null,null,null,null,null,null,"2016-07-01"]
[null,null,null,null,null,null,null,null,null,null,null,null,null,null,null,null,null,null,null,null,null,null,null,null,null,null,null,null,null,null,null,null,null,null,null,"2016-08-01",null,null,null,null,null,null,"2016-08-01",null,null,null,null,null,null,"2016-08-01",null,null,null,null,null,null,"2016-08-01"]
[null,null,null,null,null,null,null,null,null,null,null,null,null,null,null,null,null,null,null,null,null,null,null,null,null,null,null,null,null,null,null,null,null,null,null,"2016-09-01",null,null,null,null,null,null,"2016-09-01",null,null,null,null,null,null,"2016-09-01",null,null,null,null,null,null,"2016-09-01"]
[null,null,null,null,null,null,null,null,null,null,null,null,null,null,null,null,null,null,null,null,null,null,null,null,null,null,null,null,null,null,null,null,null,null,null,"2016-10-01",null,null,null,null,null,null,"2016-10-01",null,null,null,null,null,null,"2016-10-01",null,null,null,null,null,null,"2016-10-01"]
[null,null,null,null,null,null,null,null,null,null,null,null,null,null,null,null,null,null,null,null,null,null,null,null,null,null,null,null,null,null,null,null,null,null,null,"2016-11-01",null,null,null,null,null,null,"2016-11-01",null,null,null,null,null,null,"2016-11-01",null,null,null,null,null,null,"2016-11-01"]
[null,null,null,null,null,null,null,null,null,null,null,null,null,null,null,null,null,null,null,null,null,null,null,null,null,null,null,null,null,null,null,null,null,null,null,"2016-12-01",null,null,null,null,null,null,"2016-12-01",null,null,null,null,null,null,"2016-12-01",null,null,null,null,null,null,"2016-12-01"]
[null,null,null,null,null,null,null,null,null,null,null,null,null,null,null,null,null,null,null,null,null,null,null,null,null,null,null,null,null,null,null,null,null,null,null,"Grand Total",null,null,null,null,null,null,"Grand Total",null,null,null,null,null,null,"Grand Total",null,null,null,null,null,null,"Grand Total"]